Cogmind - Beta 17 @@@ ROGUE MODE // 2026.08.22 @ 18:37:25 Player: C0-2MO Result: Heading to fleet! Performance ------------- Evolutions (9) 4500 Regions Visited (35) 7000 Robots Destroyed (315) 1575 Value Destroyed (15887) 15887 Prototype IDs (82) 1640 Alien Tech Used (12) 2400 Bonus (31925) 31925 TOTAL SCORE: 64927 Bonus ------- Triggered Max Security 2000 High Alert Combat Kills 6082 Follower Combat Kills 3064 Hunted by Unchained 500 Entered Garrisons 1200 Used RIF Installer 3500 Network Hubs Disabled 200 Found Hidden Lab 3000 Used Core Reset Matrix 3000 Scanned by Researcher 500 Pursued by Intercept 1000 Integrated Exoskeleton 5000 Win 3000 Friendly Fire -121 Cogmind --------- Core Integrity 802/1600 Matter 295/300 Energy 288/290 System Corruption 0% Temperature Cool (0) Movement Walking (30) +NEM 2 Location To Fleet Rendezvous Parts ------- > --- POWER (1) -------- Light Quantum Reactor > --- PROPULSION (3) --- Sigix Exoskeleton > --- UTILITY (5) ------ Experimental Reaction Control System Graphene Brace Improved Component Analysis Suite Advanced System Restoration Module > --- WEAPON (2) ------- Sigix Shearcannon > --- INVENTORY (5) ---- Sigix Sheargun Sigix Sheargun Peak State ------------ > --- POWER ------------ Light Quantum Reactor > --- PROPULSION ------- Sigix Exoskeleton > --- UTILITY ---------- Experimental Reaction Control System Advanced Cloaking Device Graphene Brace Experimental Hardlight Generator Improved Component Analysis Suite > --- WEAPON ----------- Sigix Shearcannon > --- INVENTORY -------- Light Quantum Reactor Advanced System Restoration Module Integrity Redistributor Sigix Sheargun Sigix Sheargun [Rating: 246] Favorites ----------- Power Light Nuclear Core Engine Light Ion Engine Power Core Light Nuclear Core Reactor Fusion Reactor Propulsion Improved Cesium-ion Thruster Treads Light Treads Leg Sigix Exoskeleton Flight Unit Improved Cesium-ion Thruster Utility Hacking Suite Device Graphene Brace Storage Medium Storage Unit Processor Advanced Signal Interpreter Hackware Hacking Suite Protection Medium Regenerative Plating Weapon Enhanced Autogun Energy Gun Sigix Sheargun Energy Cannon Sigix Shearcannon Ballistic Gun Enhanced Autogun Ballistic Cannon Hypervelocity Mass Driver Launcher Mini Grenade Launcher Special Weapon Improved Plasma Cutter Impact Weapon Powered Hammer Slashing Weapon Great Axe Piercing Weapon Spear Special Melee Weapon Advanced Datajack Build | -11 -10 -9 -9 -8 -8 -8 -8 -7 -7 -7 -7 -7 -7 -7 -7 -7 -5 -5 -5 -5 -5 -5 -4 -4 -4 -4 -4 -4 -4 -3 -3 -2 -2 -2 -1 ------- Run | Yrd Mat Mat Min Mat Gar Mat Gar Fac Was Fac Gar Fac Sto Gar Rec Scr Fac Ext Cet Arc Hub Gar Fac Was Fac Gar Fac Arm Lab Res Qua Res Tes Sec Acc Slots Evolved 18 | . . 2 . 2 . . . 2 . . . . . . . . 4 . . . . . 2 . . . . . . 2 . 2 . . 2 Power 1 | . . . . . . . . . . . . . . . . . 1 . . . . . . . . . . . . . . . . . . Propulsion 5 | . . 1 . 1 . . . 1 . . . . . . . . 1 . . . . . . . . . . . . . . 1 . . . Utility 11 | . . . . 1 . . . 1 . . . . . . . . 2 . . . . . 2 . . . . . . 2 . 1 . . 2 Weapon 1 | . . 1 . . . . . . . . . . . . . . . . . . . . . . . . . . . . . . . . . Parts Attached 280 | 6 11 25 . 23 9 . 3 19 1 3 6 1 14 6 1 . 8 10 3 3 3 4 10 . 7 4 25 9 3 14 5 20 7 13 4 Power 43 | . . 1 . 4 2 . 1 5 1 . . 1 1 1 . . 2 2 1 . . 3 2 . 1 1 3 1 . . 2 4 . 3 1 Engine 7 | . . 1 . 1 1 . 1 2 . . . . . . . . 1 . . . . . . . . . . . . . . . . . . Core 24 | . . . . 3 1 . . 3 1 . . 1 1 1 . . 1 . 1 . . 3 2 . 1 1 1 1 . . 1 1 . . . Reactor 12 | . . . . . . . . . . . . . . . . . . 2 . . . . . . . . 2 . . . 1 3 . 3 1 Propulsion 67 | 2 4 11 . 5 . . . 4 . . 2 . 9 . . . . . . . 1 1 3 . 3 1 7 2 1 1 1 6 1 2 . Treads 2 | 2 . . . . . . . . . . . . . . . . . . . . . . . . . . . . . . . . . . . Leg . | . . . . . . . . . . . . . . . . . . . . . . . . . . . . . . . . . . . . Wheel . | . . . . . . . . . . . . . . . . . . . . . . . . . . . . . . . . . . . . Hover . | . . . . . . . . . . . . . . . . . . . . . . . . . . . . . . . . . . . . Flight 65 | . 4 11 . 5 . . . 4 . . 2 . 9 . . . . . . . 1 1 3 . 3 1 7 2 1 1 1 6 1 2 . Utility 108 | 2 4 2 . 3 5 . 2 7 . 2 4 . . 4 . . 5 4 1 2 2 . 3 . 1 1 13 4 1 12 2 9 4 6 3 Device 55 | 2 3 . . 2 1 . . 1 . 1 1 . . 2 . . 3 1 . 1 1 . 1 . 1 . 6 3 . 7 1 5 3 6 3 Storage 7 | . . . . . . . . 1 . . . . . . . . . 1 . . . . . . . . 2 . . 2 1 . . . . Processor 8 | . . . . 1 . . . . . . . . . . . . . . . . . . . . . . 3 . . 2 . 2 . . . Hackware 29 | . 1 . . . 4 . 2 3 . 1 3 . . 2 . . 2 1 . 1 . . 2 . . 1 2 1 1 . . 1 1 . . Protection 9 | . . 2 . . . . . 2 . . . . . . . . . 1 1 . 1 . . . . . . . . 1 . 1 . . . Artifact . | . . . . . . . . . . . . . . . . . . . . . . . . . . . . . . . . . . . . Weapon 62 | 2 3 11 . 11 2 . . 3 . 1 . . 4 1 1 . 1 4 1 1 . . 2 . 2 1 2 2 1 1 . 1 2 2 . Energy Gun 3 | 1 . . . . . . . . . . . . 1 . . . . . . . . . . . . . . . . . . . . 1 . Energy Cannon 3 | . . . . . . . . . . . . . . . . . . . . . . . . . 1 1 . . . . . . . 1 . Ballistic Gun 35 | 1 2 10 . 10 . . . 2 . . . . 3 1 . . . 3 1 . . . 2 . . . . . . . . . . . . Ballistic Cannon 1 | . . . . . . . . . . . . . . . . . . . . . . . . . . . . 1 . . . . . . . Launcher 1 | . . . . 1 . . . . . . . . . . . . . . . . . . . . . . . . . . . . . . . Special Weapon 3 | . . . . . . . . . . . . . . . . . . 1 . . . . . . . . . 1 1 . . . . . . Impact Weapon 1 | . . . . . . . . . . 1 . . . . . . . . . . . . . . . . . . . . . . . . . Slashing Weapon 7 | . 1 1 . . . . . . . . . . . . 1 . 1 . . . . . . . 1 . 2 . . . . . . . . Piercing Weapon 3 | . . . . . 1 . . . . . . . . . . . . . . . . . . . . . . . . . . 1 1 . . Special Melee Weapon 5 | . . . . . 1 . . 1 . . . . . . . . . . . 1 . . . . . . . . . 1 . . 1 . . Unidentified Prototypes 43 | . . 2 . 3 . . . 3 . . . . 1 1 . . 2 4 2 . . . 1 . . . 1 . 4 6 2 4 6 1 . Parts Lost 87 | . 1 1 . 3 2 . . 5 . . 2 . 5 4 . . 2 5 . 1 3 5 2 . 9 5 10 . . 3 . 10 . 7 2 Power 18 | . . 1 . 1 1 . . 1 . . . . . 1 . . 1 1 . . 1 1 1 . . 2 1 . . 1 . 2 . 2 . Propulsion 26 | . . . . 1 . . . 2 . . 1 . 2 . . . . 1 . 1 1 1 . . 3 3 5 . . 1 . 2 . 2 . Utility 24 | . 1 . . 1 1 . . . . . 1 . 1 . . . 1 1 . . . 1 1 . 3 . 2 . . 1 . 4 . 3 2 Weapon 19 | . . . . . . . . 2 . . . . 2 3 . . . 2 . . 1 2 . . 3 . 2 . . . . 2 . . . Highest Loss Streak 10 | . 1 1 . 2 2 . . 2 . . 1 . 3 3 . . 2 2 . 1 3 5 2 . 9 10 4 . . 3 . 3 . 5 2 To Critical Strikes 1 | . . . . . . . . . . . . . . 1 . . . . . . . . . . . . . . . . . . . . . Average Backups 6 | . 4 4 5 4 4 5 5 5 9 9 9 9 9 9 10 10 8 9 8 7 8 9 7 8 7 3 4 5 5 7 9 9 10 6 3 Power . | . . . . . . . . . . 1 1 1 1 1 1 1 . . 1 1 1 1 . 1 . . 1 1 1 1 . . . . . Propulsion 1 | . . 2 2 1 1 1 1 . 1 1 1 2 3 4 4 4 3 2 2 1 1 2 4 4 3 . . . 1 . 1 . 1 . . Utility 2 | . 1 1 . . . 1 1 2 4 4 4 3 3 3 4 4 4 5 4 3 3 4 1 2 1 1 1 2 2 3 3 2 4 3 . Weapon 1 | . 2 1 2 2 2 2 1 2 2 2 2 2 1 . . . . . 1 1 1 . . . . . . . . 1 1 1 . 1 2 Tool/Special . | . . . . . . . . . . . . . . . . . . . . . . . . . . . . . . . . . . . . Unused Backups 15 | . . 2 . 1 . . 2 . . . . . 1 . . . . 2 . . . . 2 . 3 . . 1 . . 1 . . . . Power . | . . . . . . . . . . . . . . . . . . . . . . . . . . . . . . . . . . . . Propulsion 4 | . . . . . . . . . . . . . 1 . . . . . . . . . . . 3 . . . . . . . . . . Utility 6 | . . 1 . . . . 1 . . . . . . . . . . 2 . . . . . . . . . 1 . . 1 . . . . Weapon 5 | . . 1 . 1 . . 1 . . . . . . . . . . . . . . . 2 . . . . . . . . . . . . Tool/Special . | . . . . . . . . . . . . . . . . . . . . . . . . . . . . . . . . . . . . Average Slot Usage (%) 88 | . 77 98 100 97 98 100 100 94 100 100 97 95 96 95 92 97 97 95 100 99 95 91 89 89 85 70 70 83 87 80 82 80 84 70 68 Engine 1 | . . 9 11 3 1 9 9 1 2 . . . . . . . 3 1 . . . . . . . . . . . . . . . . . Core 4 | . . . . 5 6 . . 5 4 7 7 7 7 6 7 7 7 5 5 5 4 4 9 10 10 9 1 5 5 2 3 3 . . . Reactor 2 | . . . . . . . . . . . . . . . . . . 3 5 5 5 4 . . . . 4 4 5 4 4 3 8 9 9 Flight 27 | . 15 32 33 35 36 36 36 34 38 38 37 38 36 38 38 38 34 34 35 34 32 28 25 26 25 21 17 19 23 21 19 20 21 6 . Device 11 | . 18 . . 7 6 9 7 6 . 5 2 1 7 4 . . 8 7 11 14 11 5 14 21 17 21 14 19 17 17 14 16 18 22 41 Storage 3 | . . . . . . . . 3 7 7 7 7 7 7 7 7 5 5 5 5 5 5 5 5 4 . 1 . . 3 4 4 4 6 . Processor 2 | . . . . 8 4 . . . . . . . . . . . . . . . . . . . . . 4 5 5 5 9 8 8 2 . Hackware 13 | . 2 11 11 9 14 18 19 18 23 16 17 16 14 15 23 23 17 16 11 11 11 11 14 15 14 13 17 15 18 16 14 11 10 2 . Protection 1 | . . 10 11 1 . . . . . . . . . . . . . 3 5 2 5 10 4 . 3 . . . . . 2 4 4 . . Ballistic Gun 11 | . 26 31 33 26 16 18 22 15 20 21 11 13 16 11 7 7 5 8 16 9 6 10 12 10 8 . . . . . . . . . . Slashing Weapon 1 | . . 1 . . . . . . . . . . . . . . 2 2 . 3 4 4 . . . . 2 5 5 4 4 3 . . . Piercing Weapon 1 | . . . . . 5 9 3 2 2 . . . . . . . . . . . . . . . . . . . . . . . 4 1 . Special Melee Weapon 1 | . . . . . 4 . . 2 . . 4 5 . 1 . 5 5 1 . 2 4 . . . . . . . . 1 4 1 3 1 . Peak Build Rating 246 | 4 10 24 24 45 45 42 42 52 50 54 54 51 54 53 53 51 73 85 91 91 92 91 97 85 97 97 94 117 119 123 135 145 157 231 246 Average Rating 78 | 3 6 16 24 40 41 42 40 46 49 53 48 45 46 49 50 50 69 75 87 88 87 86 88 85 88 92 82 103 112 111 129 131 146 197 240 On Entrance 71 | . 4 10 24 24 45 42 42 41 47 50 54 46 47 51 50 50 51 73 85 89 91 88 62 85 85 87 76 69 114 115 114 135 135 150 231 Avg Prop Armor Cover (%) 8 | 32 28 . . . 6 . . 2 . . . . . . . . . . . . . . . . . . . . . . . . . . . Naked Turns . | . . . . . . . . . . . . . . . . . . . . . . . . . . . . . . . . . . . . Heaviest Build 54 | 3 7 15 15 18 16 16 16 26 24 26 26 26 27 26 21 22 31 45 47 47 41 47 41 31 40 27 38 40 40 37 41 48 50 52 54 Greatest Support 60 | 3 40 15 15 24 22 22 22 26 26 26 26 26 27 34 26 26 31 47 47 47 54 54 50 34 50 38 41 40 40 43 48 51 58 60 60 Greatest Overweight (x) 2 | . . 1 . . . . . 1 . . 1 1 1 . . . . 2 . . . . . . . . 1 . . . . 1 . 1 . Average Overweight (x) . | . . . . . . . . . . . . . . . . . . . . . . . . . . . . . . . . . . . . Largest Inventory Capacity 10 | 5 5 5 5 5 5 5 5 10 10 10 10 10 10 10 10 10 10 10 10 10 10 10 10 10 10 5 10 10 5 10 10 10 10 10 5 Average Capacity 7 | 5 5 5 5 5 5 5 5 7 10 10 10 10 10 10 10 10 10 10 10 10 10 10 10 10 9 5 6 5 5 9 10 10 10 8 5 Most Carried 10 | 1 5 5 5 5 5 5 5 10 10 10 10 10 10 10 10 10 10 10 9 8 10 10 10 9 10 5 6 6 5 10 10 10 10 10 5 Average Carried 6 | . 4 4 5 4 4 5 4 5 9 9 9 9 9 9 10 9 8 9 8 7 8 9 7 9 8 4 4 4 4 8 9 9 9 6 3 Final Capacity 10 | 5 5 5 5 5 5 5 5 10 10 10 10 10 10 10 10 10 10 10 10 10 10 10 10 10 5 5 10 5 5 10 10 10 10 5 5 Final Carried 10 | 1 5 5 5 5 5 5 5 9 10 9 10 9 10 10 10 10 10 9 8 7 9 9 9 9 5 5 6 5 5 10 10 10 10 5 2 Class Distribution -------------------- 28% | Hacker-Sprinter 14% | Scavenger-Sprinter 12% | Sprinter 10% | Commander-Sprinter 7% | Alien-Sigix 4% | Bothacker-Sprinter 4% | Hacker-Ninja 4% | Mutant 3% | Hacker-Mutant 3% | Scavenger-Tank Dominant Class ---------------- Mutant | -10/Materials Scavenger-Tank | -9/Materials Tank | -9/Mines Sprinter | -8/Materials Commander-Sprinter | -8/Garrison Commander-Sprinter | -8/Materials Commander-Sprinter | -8/Garrison Hacker-Sprinter | -7/Factory Hacker-Sprinter | -7/Waste Hacker-Sprinter | -7/Factory Hacker-Sprinter | -7/Garrison Hacker-Sprinter | -7/Factory Hacker-Sprinter | -7/Storage Sprinter | -7/Garrison Bothacker-Sprinter | -7/Recycling Bothacker-Sprinter | -7/Scraptown Bothacker-Sprinter | -5/Factory Scavenger-Sprinter | -5/Extension Scavenger-Sprinter | -5/Cetus Scavenger-Sprinter | -5/Archives Commander-Sprinter | -5/Hub_04(d) Scavenger-Sprinter | -5/Garrison Scavenger-Sprinter | -4/Factory Scavenger-Sprinter | -4/Waste Scavenger-Mutant | -4/Factory Scavenger-Sprinter | -4/Garrison Hacker-Sprinter | -4/Factory Hacker-Ninja | -4/Armory Hacker-Ninja | -4/Lab Hacker-Ninja | -3/Research Hacker-Sprinter | -3/Quarantine Hacker-Sprinter | -2/Research Hacker-Sprinter | -2/Testing Alien-Sigix | -2/Section 7 Alien-Sigix | -1/Access Resources | -11 -10 -9 -9 -8 -8 -8 -8 -7 -7 -7 -7 -7 -7 -7 -7 -7 -5 -5 -5 -5 -5 -5 -4 -4 -4 -4 -4 -4 -4 -3 -3 -2 -2 -2 -1 ----------- Run | Yrd Mat Mat Min Mat Gar Mat Gar Fac Was Fac Gar Fac Sto Gar Rec Scr Fac Ext Cet Arc Hub Gar Fac Was Fac Gar Fac Arm Lab Res Qua Res Tes Sec Acc Matter Collected 11203 | 281 310 728 20 1568 742 . 374 1359 126 33 422 268 635 396 . 30 112 260 227 283 . 233 399 . 89 458 314 131 . 232 127 290 191 484 81 Remotely 146 | 146 . . . . . . . . . . . . . . . . . . . . . . . . . . . . . . . . . . . Salvage Created 16191 | 134 511 1434 . 2024 836 . 428 1058 . 33 185 169 733 394 . . 185 402 105 373 . 157 265 . 30 409 539 71 . 136 138 321 234 3810 1077 Parts 820 | 9 44 99 . 117 53 . 28 67 . . 17 8 35 13 . . 7 28 9 17 . 6 8 . 6 13 31 8 . 4 13 19 9 115 37 Haulers Intercepted 23 | . 1 5 . 4 . . . 3 . . . 1 3 . . . 1 . . . . . . . . . . . . 1 . . 2 . 2 Recyclers Shooed 11 | 1 1 2 . 4 . . . . . . . . 2 . . . . . . . . . 1 . . . . . . . . . . . . Parts Field Recycled . | . . . . . . . . . . . . . . . . . . . . . . . . . . . . . . . . . . . . Retrieved Matter . | . . . . . . . . . . . . . . . . . . . . . . . . . . . . . . . . . . . . Parts Self-Destructed . | . . . . . . . . . . . . . . . . . . . . . . . . . . . . . . . . . . . . Prevented . | . . . . . . . . . . . . . . . . . . . . . . . . . . . . . . . . . . . . Parts Restored . | . . . . . . . . . . . . . . . . . . . . . . . . . . . . . . . . . . . . Kills | -11 -10 -9 -9 -8 -8 -8 -8 -7 -7 -7 -7 -7 -7 -7 -7 -7 -5 -5 -5 -5 -5 -5 -4 -4 -4 -4 -4 -4 -4 -3 -3 -2 -2 -2 -1 ------- Run | Yrd Mat Mat Min Mat Gar Mat Gar Fac Was Fac Gar Fac Sto Gar Rec Scr Fac Ext Cet Arc Hub Gar Fac Was Fac Gar Fac Arm Lab Res Qua Res Tes Sec Acc Combat Hostiles Destroyed 227 | . 11 27 . 34 18 . 8 17 . . 8 2 10 3 . . 3 7 1 3 . 4 5 . 1 4 1 1 . . . 3 . 48 8 Melee 22 | . . . . . 4 . . 3 . . . . . 1 . . 2 6 . . . . . . . . . 1 . . . 3 . 2 . Guns 142 | . 11 27 . 30 14 . 8 14 . . 8 2 10 1 . . 1 1 1 3 . 4 5 . 1 . . . . . . . . 1 . Cannons 54 | . . . . . . . . . . . . . . . . . . . . . . . . . . 2 . . . . . . . 45 7 AOE 6 | . . . . 4 . . . . . . . . . . . . . . . . . . . . . . 1 . . . . . . . 1 Classes Destroyed 24 | 2 5 3 . 3 2 . 1 1 . . . . . . . . . 1 . . . . . . . . . 1 . . 1 . . 4 . Worker 8 | . 1 1 . . . . . 2 . . . . . . . . . . . . . . . . . . . . . . . 1 . . 3 Builder 10 | . . 1 . 1 . . . 2 . . . . 1 . . . 1 . . . . . . . . . 3 . . 1 . . . . . Tunneler 3 | 2 1 . . . . . . . . . . . . . . . . . . . . . . . . . . . . . . . . . . Hauler 23 | . 1 5 . 4 . . . 3 . . . 1 3 . . . 1 . . . . . . . . . . . . 1 . . 2 . 2 Recycler 14 | 1 . 2 . 2 . . . 2 . . . . 2 . . . . . . . . . 1 . . . 3 . . . . 1 . . . Mechanic 1 | . . . . . . . . . . . . . . . . . . . . . . . . . . . . . . . . . . 1 . Operator 10 | . 1 . . 3 . . . . . . . . . . . . . . . 3 . . . . . . 1 . . . . 1 1 . . Watcher 14 | . . . . 3 1 . . 1 . 1 . . . . . . . . . . . 1 . . . . 1 . . . 1 1 . 2 2 Swarmer 52 | . 3 8 . 6 4 . . 4 . . 8 . 4 1 . . 3 2 . . . 3 5 . . . . . . . . 1 . . . Cutter 7 | . . . . . . . . 2 . . . . . . . . . . . . . . . . 1 . . . . . . 2 . 2 . Saboteur 3 | . . . . . . . . . . . . . . . . . . . . . . . . . . . . . . . . . . 3 . Grunt 79 | . 8 12 . 19 4 . 2 6 . . . 1 4 . . . . 1 . . . . . . . 3 . . . . . . . 16 3 Brawler 6 | . . . . . . . 1 . . . . 1 . . . . . . . . . . . . . . . . . . . . . 3 1 Duelist 8 | . . 1 . . 1 . . . . . . . . . . . . . . . . . . . . . . . . . . . . 5 1 Protector 3 | . . . . . . . . . . . . . . . . . . . . . . . . . . . . 1 . . . . . 1 1 Researcher 2 | . . . . . . . . . . . . . . . . . . . . . . . . . . . . . . . 2 . . . . Sentry 33 | . . 6 . 7 4 . 4 2 . . . . 2 . . . . 2 . 3 . . . . . 1 . . . . . . . . 2 Specialist 1 | . . . . . 1 . . . . . . . . . . . . . . . . . . . . . . . . . . . . . . Hunter 9 | . . . . 1 . . . . . . . . . 2 . . . 1 . . . . . . . . 1 . . . . . . 4 . Programmer 14 | . . . . . 4 . 1 3 . . . . . . . . . . . . . . . . . . . . . . . . . 6 . Heavy 1 | . . . . 1 . . . . . . . . . . . . . . . . . . . . . . . . . . . . . . . Behemoth 2 | . . . . . . . . . . . . . . . . . . 1 . . . 1 . . . . . . . . . . . . . Cetus Guard 1 | . . . . . . . . . . . . . . . . . . . 1 . . . . . . . . . . . . . . . . S7 Guard 1 | . . . . . . . . . . . . . . . . . . . . . . . . . . . . . . . . . . 1 . Investigator 2 | . . . . . . . . . . . . . . . . . . . . . . . . . . . . . . . . . . 1 1 Striker 4 | . . . . . . . . . . . . . . . . . . . . . . . . . . . . . . . . . . 4 . Executioner 3 | . . . . . . . . . . . . . . . . . . . . . . . . . . . . . . . . . . 3 . Butcher 1 | . . . . . . . . . . . . . . . . . . . 1 . . . . . . . . . . . . . . . . Best Kill Streak 26 | 2 4 8 . 12 3 . 3 3 . 1 4 1 9 1 . . 3 3 1 3 . 3 4 . 1 2 4 1 . 1 1 2 1 26 10 Combat Bots Only 25 | . 4 7 . 5 3 . 3 2 . . 4 1 7 1 . . 3 3 1 1 . 3 4 . 1 2 1 1 . . . 2 . 25 6 Max Kills in Single Turn 4 | 1 2 2 . 3 1 . 2 2 . 1 2 1 2 1 . . 1 1 1 1 . 1 2 . 1 1 2 1 . 1 1 1 1 2 4 Gunslinging 1 | . . . . . . . 1 . . . 1 . 1 . . . . . . . . . . . . . . . . . . . . . . Exploded 3 | . . . . 3 . . . . . . . . . . . . . . . . . . . . . . 1 . . . . . . . 1 Melee 1 | . . . . . 1 . . 1 . . . . . 1 . . 1 1 . . . . . . . . . 1 . . . 1 . 1 . Uniques/NPCs Destroyed . | . . . . . . . . . . . . . . . . . . . . . . . . . . . . . . . . . . . . Combat | -11 -10 -9 -9 -8 -8 -8 -8 -7 -7 -7 -7 -7 -7 -7 -7 -7 -5 -5 -5 -5 -5 -5 -4 -4 -4 -4 -4 -4 -4 -3 -3 -2 -2 -2 -1 -------- Run | Yrd Mat Mat Min Mat Gar Mat Gar Fac Was Fac Gar Fac Sto Gar Rec Scr Fac Ext Cet Arc Hub Gar Fac Was Fac Gar Fac Arm Lab Res Qua Res Tes Sec Acc Hostile Shots Fired 2374 | . 58 70 . 137 63 . 41 155 . 1 44 3 151 77 . . 41 57 11 16 31 58 55 . 86 63 132 17 . 44 10 123 4 694 132 Missed 1073 | . 14 23 . 52 29 . 14 71 . . 11 2 72 27 . . 24 22 6 11 18 17 22 . 38 28 66 11 . 27 6 54 4 327 77 Hits 1301 | . 44 47 . 85 34 . 27 84 . 1 33 1 79 50 . . 17 35 5 5 13 41 33 . 48 35 66 6 . 17 4 69 . 367 55 Melee 83 | . . . . . . . . 14 . . . . . . . . . . . . . . . . 8 . . . . . . 5 . 55 1 Projectile 1218 | . 44 47 . 85 34 . 27 70 . 1 33 1 79 50 . . 17 35 5 5 13 41 33 . 40 35 66 6 . 17 4 64 . 312 54 AOE 6 | . . . . . . . . . . . . . 1 . . . . . . . . . . . . . . . . . . . . 5 . Critical Strikes 84 | . . 1 . 4 2 . 3 10 . . 1 1 1 1 . . . 1 1 . 1 4 1 . 6 . 4 . . . . 3 . 36 3 Actively Blocked 62 | . . . . . 1 . 2 10 . . . . . . . . . . . . . . 1 . 6 . 1 . . . . 3 . 35 3 Part Disruptions 3 | . . . . . 1 . . . . . . . . . . . . . . . 1 1 . . . . . . . . . . . . . Damage Taken 19316 | . 523 528 . 1340 430 . 438 1182 38 16 495 53 873 574 . . 284 676 142 135 290 798 599 . 854 545 1242 155 . 380 77 1448 . 4519 682 Core 4062 | . 172 166 . 228 70 . 116 202 . . 118 . 163 120 . . 83 192 . 27 27 137 77 . 80 80 125 46 . 94 . 173 . 1306 260 Absorbed by Shields 1819 | . . . . . . . . . . . . . . 76 . . . 160 . . . 6 . . . 24 . . . . . . . 1178 375 Redirected to Shielding 251 | . . . . . . . . . . . . . . . . . . . . . 43 67 . . . . . . . . . 33 . 108 . Ignored by Resistances 4827 | . . . . . . . . . . . . . . . . . . . . . . . . . . . . . . . . . . 4046 781 Regen/Repaired (Parts) 5854 | . 30 . . 223 37 . 278 650 55 . . 155 80 . . . 52 124 66 57 5 120 280 . 58 . 111 . . . . . . 260 3213 Core Remaining (%) 51 | 100 31 . 58 . . . 24 . . . . . . . . 13 . . . . . 53 . . . . . . 89 . 92 . . 8 50 Volleys Fired 781 | 7 61 79 . 127 51 . 29 67 8 7 20 14 44 20 . . 3 6 12 19 1 19 15 . 11 28 24 . . . . . . 83 26 Largest 3 | 2 2 3 . 3 3 . 3 3 3 3 3 3 3 3 . . 1 3 3 3 2 2 3 . 2 1 1 . . . . . . 2 1 Hottest 200 | 70 40 69 . 76 75 . 75 78 75 75 75 75 75 75 . . 25 86 86 93 63 63 74 . 105 105 105 . . . . . . 200 180 Shots Fired 1872 | 10 122 237 . 379 143 . 76 201 24 21 60 42 126 49 . . 3 16 36 57 2 37 38 . 18 28 24 . . . . . . 97 26 Gun 1726 | 10 122 237 . 374 143 . 76 201 24 21 60 42 126 49 . . 3 15 35 57 2 37 38 . 15 . . . . . . . . 37 2 Cannon 139 | . . . . . . . . . . . . . . . . . . . . . . . . . 3 28 24 . . . . . . 60 24 Launcher 5 | . . . . 5 . . . . . . . . . . . . . . . . . . . . . . . . . . . . . . . Special 2 | . . . . . . . . . . . . . . . . . . 1 1 . . . . . . . . . . . . . . . . Kinetic 1684 | 7 122 237 . 374 143 . 76 201 24 21 60 42 126 49 . . 3 15 35 57 2 37 38 . 15 . . . . . . . . . . Thermal 39 | 3 . . . . . . . . . . . . . . . . . . . . . . . . 3 9 24 . . . . . . . . Explosive 5 | . . . . 5 . . . . . . . . . . . . . . . . . . . . . . . . . . . . . . . Electromagnetic 19 | . . . . . . . . . . . . . . . . . . . . . . . . . . 19 . . . . . . . . . Slashing 123 | . . . . . . . . . . . . . . . . . . . . . . . . . . . . . . . . . . 97 26 Robot Hit Streak 27 | 3 13 20 . 27 9 . 10 9 6 5 5 5 9 9 . . 5 6 4 18 . 10 12 . 4 8 5 . . . . . . 24 25 Robot Miss Streak 10 | 1 6 4 . 6 4 . 3 10 3 7 5 5 5 2 . . . 2 3 2 . 2 5 . 7 2 2 . . . . . . 5 7 Penetration Max 1 | . . . . . . . . . . . . . . . . . . 1 . 1 . 1 1 . . . . . . . . . . 1 1 Secondary Targets 20 | . . . . 3 5 . 2 1 . . 3 . 5 . . . . . . . . . . . 1 . . . . . . . . . . Max Gunslinging Chain 1 | . . . . 1 1 . 1 1 . . 1 . 1 . . . . . . . . . . . 1 . . . . . . . . . . Shots Hit Robots 1346 | 7 75 160 . 228 123 . 49 124 15 9 39 28 83 44 . . 15 38 23 49 1 26 21 . 10 14 32 4 . 8 8 18 10 72 13 Core Hits 607 | 4 31 64 . 96 29 . 14 45 1 3 12 6 31 12 . . 2 10 9 13 . 8 11 . 5 7 10 2 . 1 3 5 4 136 33 Critical Kills 5 | . . 1 . 1 . . . . . . . . . . . . . . . 1 . . . . . 2 . . . . . . . . . Critical Parts Destroyed 11 | . . . . 1 . . 1 1 1 . . . . 1 . . 2 . . 3 . 1 . . . . . . . . . . . . . Critical Strikes 39 | . . 1 . 2 1 . 1 1 1 . . . . 1 . . 2 1 . 4 . 4 . . 1 2 5 2 . . . . 2 8 . Meltdown 2 | . . . . . . . . . . . . . . . . . . . . . . . . . . 2 . . . . . . . . . Destroy 14 | . . 1 . 2 . . 1 1 1 . . . . . . . . . . 4 . 4 . . . . . . . . . . . . . Smash 3 | . . . . . . . . . . . . . . 1 . . 2 . . . . . . . . . . . . . . . . . . Sever 17 | . . . . . . . . . . . . . . . . . . 1 . . . . . . 1 . 5 2 . . . . . 8 . Impale 3 | . . . . . 1 . . . . . . . . . . . . . . . . . . . . . . . . . . . 2 . . Melee Attacks 658 | . . 10 . . 101 2 22 48 . 2 43 13 13 32 1 . 29 53 . 7 3 17 1 . 4 . 52 28 5 45 27 56 20 24 . Impact 90 | . . . . . . . . . . 2 32 7 13 26 1 . 9 . . . . . . . . . . . . . . . . . . Slashing 275 | . . 10 . . . . . . . . . . . . . . 16 32 . 3 3 17 . . 4 . 47 28 5 45 24 41 . . . Piercing 164 | . . . . . 54 2 16 34 . . . . . . . . . . . . . . . . . . . . . . . 15 19 24 . Sneak Attacks 125 | . . 1 . . 47 . 3 12 . . 5 1 3 1 . . 5 15 . 7 . 2 1 . . . 8 1 . 2 5 2 4 . . Combat Hostiles 5 | . . . . . 1 . 1 . . . . . . . . . . 1 . . . 1 . . . . . 1 . . . . . . . Follow-up Attacks . | . . . . . . . . . . . . . . . . . . . . . . . . . . . . . . . . . . . . Damage Inflicted 44602 | 85 700 1845 . 3971 1844 . 819 2737 270 152 496 490 1827 1070 . . 744 863 486 1436 53 847 335 . 234 578 1181 202 . 468 375 1013 615 16097 2769 Guns 16568 | 85 698 1674 . 3582 1296 . 727 1989 270 152 496 372 1429 444 . . 54 207 486 1010 . 670 335 . 149 . . . . . . . . 443 . Cannons 18014 | . . . . . . . . . . . . . . . . . . . . . . . . . . 578 70 . . . . . . 15184 2182 Explosions 1334 | . . . . 389 . . . . . . . . . . . . . . . . . . . . . . 376 . . . . . . . 569 Melee 8573 | . . 171 . . 548 . 92 748 . . . 118 398 626 . . 690 656 . 426 53 177 . . 85 . 735 202 . 468 375 1013 615 377 . Ramming 113 | . 2 . . . . . . . . . . . . . . . . . . . . . . . . . . . . . . . . 93 18 Kinetic 16100 | 60 698 1674 . 3582 1296 . 727 1989 270 152 496 372 1429 444 . . 54 207 486 1010 . 670 335 . 149 . . . . . . . . . . Thermal 649 | 25 . . . . . . . . . . . . . . . . . . . . . . . . . 223 401 . . . . . . . . Explosive 434 | . . . . 389 . . . . . . . . . . . . . . . . . . . . . . 45 . . . . . . . . Electromagnetic 924 | . . . . . . . . . . . . . . . . . . . . . . . . . . 355 . . . . . . . . 569 Impact 1626 | . . . . . . . . . . . . 118 398 626 . . 484 . . . . . . . . . . . . . . . . . . Slashing 22289 | . . 171 . . . . . . . . . . . . . . 206 656 . 426 53 177 . . 85 . 735 202 . 468 375 926 . 15627 2182 Piercing 2467 | . . . . . 548 . 92 748 . . . . . . . . . . . . . . . . . . . . . . . 87 615 377 . Highest Corruption 8 | . . . . . 5 5 7 1 1 1 1 . . 1 1 . . 5 5 5 . 1 . 8 8 6 3 3 3 . . . . 6 3 Average Corruption 3 | . . . . . 4 5 6 1 1 1 1 . . 1 1 . . 3 5 3 . 1 . 8 7 3 1 3 3 . . . . 2 1 Corruption Purged 21 | . . . . . . . . . . . 1 . . . . . . . . 5 . . . . 2 6 4 . . . . . . . 3 Corruption Blocked 2 | . . . . . . . . . . . . . . . . . . . . . . . . . . . . . . . . . . 2 . Effects 99 | . . . . . 19 5 14 9 1 1 1 . . . 2 . . 10 5 6 . . . . 5 1 2 4 2 . . . . 12 . Message Errors 26 | . . . . . 4 1 1 4 . . . . . . 1 . . 3 2 4 . . . . 1 . 1 . 2 . . . . 2 . Matter Fused 27 | . . . . . 4 1 6 2 . 1 . . . . 1 . . 2 1 . . . . . 2 . . 1 . . . . . 6 . Heat Flow Errors 15 | . . . . . 2 1 3 2 . . 1 . . . . . . 4 . . . . . . 1 . 1 . . . . . . . . Energy Discharges 7 | . . . . . 4 1 . . . . . . . . . . . . . 1 . . . . . . . . . . . . . 1 . Parts Rejected 1 | . . . . . . . . 1 . . . . . . . . . . . . . . . . . . . . . . . . . . . Parts Fused 1 | . . . . . . . 1 . . . . . . . . . . . . . . . . . . . . . . . . . . . . Data Loss (minor) 14 | . . . . . 4 1 2 . . . . . . . . . . 1 1 1 . . . . . 1 . 3 . . . . . . . Data Loss (major) 5 | . . . . . 1 . 1 . 1 . . . . . . . . . 1 . . . . . . . . . . . . . . 1 . Misfires 1 | . . . . . . . . . . . . . . . . . . . . . . . . . . . . . . . . . . 1 . Alerts 1 | . . . . . . . . . . . . . . . . . . . . . . . . . . . . . . . . . . 1 . Weapon Failures 1 | . . . . . . . . . . . . . . . . . . . . . . . . . 1 . . . . . . . . . . Overload Shots . | . . . . . . . . . . . . . . . . . . . . . . . . . . . . . . . . . . . . Overflow Damage 1635 | . . 37 . 8 13 . 9 85 . . . . 1 63 . . 293 . . 269 23 39 . . . . 94 7 . 92 25 190 47 261 79 Projectiles 288 | . . . . . . . . . . . . . . . . . . . . . . . . . . . . . . . . . . 209 79 Explosions 8 | . . . . 8 . . . . . . . . . . . . . . . . . . . . . . . . . . . . . . . Melee 1339 | . . 37 . . 13 . 9 85 . . . . 1 63 . . 293 . . 269 23 39 . . . . 94 7 . 92 25 190 47 52 . Knockbacks 3 | . . . . . . . . . . . . 1 . 1 . . 1 . . . . . . . . . . . . . . . . . . Impact 3 | . . . . . . . . . . . . 1 . 1 . . 1 . . . . . . . . . . . . . . . . . . Kinetic . | . . . . . . . . . . . . . . . . . . . . . . . . . . . . . . . . . . . . Secondary . | . . . . . . . . . . . . . . . . . . . . . . . . . . . . . . . . . . . . Self-Inflicted Damage 60 | . . . . . . . 41 . . . . . . . . . . . . . . . . . . . . . . . . . . . 19 Shots 2 | . . . . . . . 1 . . . . . . . . . . . . . . . . . . . . . . . . . . . 1 Rammed 2 | . 2 . . . . . . . . . . . . . . . . . . . . . . . . . . . . . . . . . . Targets Rammed 5 | . 2 . . . . . . . . . . . . . . . . . . . . . . . . . . . . . . . . 2 1 Kicked 3 | . . . . . . . . . . . . . . . . . . . . . . . . . . . . . . . . . . 2 1 Crushed . | . . . . . . . . . . . . . . . . . . . . . . . . . . . . . . . . . . . . Highest Temperature 553 | . 6 100 . 246 368 176 553 400 291 8 396 163 15 122 . . 105 323 . 3 5 290 4 . 123 130 182 . 57 286 . 392 55 42 . Average Temperature 82 | . 2 23 . 85 105 99 151 85 116 4 62 30 7 75 . . 27 93 . 2 5 133 2 . 36 39 20 . 18 129 . 121 15 9 . Received Heat Transfer 3028 | . 273 222 . 486 99 . 126 156 . 9 54 27 279 9 . . 18 182 36 18 39 180 21 . . 87 220 12 . 63 21 9 . 348 34 Effects 23 | . . . . . 1 . 6 2 2 . 1 . . . . . . . . . . 3 . . . . . . . 4 . 4 . . . Shutdowns 4 | . . . . . . . 1 2 . . . . . . . . . . . . . . . . . . . . . . . 1 . . . Energy Bleed 4 | . . . . . . . 1 . . . . . . . . . . . . . . . . . . . . . . 1 . 2 . . . Interference 12 | . . . . . . . 4 . 2 . . . . . . . . . . . . 3 . . . . . . . 3 . . . . . Matter Decay 2 | . . . . . . . . . . . 1 . . . . . . . . . . . . . . . . . . . . 1 . . . Damage (minor) 1 | . . . . . 1 . . . . . . . . . . . . . . . . . . . . . . . . . . . . . . Siege Activations . | . . . . . . . . . . . . . . . . . . . . . . . . . . . . . . . . . . . . Martial Activations . | . . . . . . . . . . . . . . . . . . . . . . . . . . . . . . . . . . . . Shielding Activations . | . . . . . . . . . . . . . . . . . . . . . . . . . . . . . . . . . . . . Robots Disrupted . | . . . . . . . . . . . . . . . . . . . . . . . . . . . . . . . . . . . . Combat Hostiles . | . . . . . . . . . . . . . . . . . . . . . . . . . . . . . . . . . . . . Robots Corrupted 5 | . . . . . . . . . . . . . . 2 . . 1 . . . . . . . . 1 . . . . . . . 1 . Combat Hostiles 2 | . . . . . . . . . . . . . . 1 . . . . . . . . . . . 1 . . . . . . . . . Parts Fried 11 | . . . . . . . . . . . . . 1 2 . . 1 1 . . . . . . . 2 . . . . . . . 2 2 Impact Corruptions 9 | . . . . . . . . . . . . . 1 2 . . 5 . . . . . . . . . . . . . . . . 1 . Robots Melted 2 | . . . . . . . . . . . . . . . . . . . . . . . . . . 2 . . . . . . . . . Combat Hostiles 1 | . . . . . . . . . . . . . . . . . . . . . . . . . . 1 . . . . . . . . . Parts Melted 3 | . . . . . . . . . . . . . . . . . . . . 1 . . . . . 2 . . . . . . . . . Heat Transferred 570 | 74 . . . . . . . . . . . . . . . . . . . . . . . . . 222 274 . . . . . . . . Parts Sabotaged . | . . . . . . . . . . . . . . . . . . . . . . . . . . . . . . . . . . . . Parts Stolen . | . . . . . . . . . . . . . . . . . . . . . . . . . . . . . . . . . . . . Parts Stripped . | . . . . . . . . . . . . . . . . . . . . . . . . . . . . . . . . . . . . Power Chain Reactions . | . . . . . . . . . . . . . . . . . . . . . . . . . . . . . . . . . . . . Alert | -11 -10 -9 -9 -8 -8 -8 -8 -7 -7 -7 -7 -7 -7 -7 -7 -7 -5 -5 -5 -5 -5 -5 -4 -4 -4 -4 -4 -4 -4 -3 -3 -2 -2 -2 -1 ------- Run | Yrd Mat Mat Min Mat Gar Mat Gar Fac Was Fac Gar Fac Sto Gar Rec Scr Fac Ext Cet Arc Hub Gar Fac Was Fac Gar Fac Arm Lab Res Qua Res Tes Sec Acc Maximum Alert Level 5 | . 1 3 1 4 4 2 5 4 1 2 3 2 1 1 1 . . 2 . . . 1 . . . . 1 2 . . . . . 5 5 Low Security (%) 40 | 100 50 17 . 6 . . . . . . . 89 97 84 58 . 100 12 100 100 100 23 100 100 100 100 41 20 . 100 100 100 100 31 . Level 1 15 | . 49 12 100 4 . . . . 100 49 17 . 2 15 42 . . 57 . . . 76 . . . . 58 34 . . . . . 5 . Level 2 12 | . . 61 . 22 13 100 22 . . 50 54 10 . . . . . 30 . . . . . . . . . 45 . . . . . . . Level 3 16 | . . 9 . 47 48 . 19 79 . . 27 . . . . . . . . . . . . . . . . . . . . . . . . Level 4 6 | . . . . 19 38 . 29 20 . . . . . . . . . . . . . . . . . . . . . . . . . . . Level 5 1 | . . . . . . . 27 . . . . . . . . . . . . . . . . . . . . . . . . . . . 10 High Security . | . . . . . . . . . . . . . . . . . . . . . . . . . . . . . . . . . . . . Max Security 6 | . . . . . . . . . . . . . . . . . . . . . . . . . . . . . . . . . . 63 90 Peak Influence 3164 | 5 318 749 289 1151 1376 670 1698 1243 338 412 788 413 218 254 282 . 132 506 197 148 110 308 186 61 42 190 395 563 . 40 146 109 79 3164 2589 Initial 1898 | . . 118 289 104 549 670 403 838 323 203 274 413 . 76 109 . . 55 197 49 11 77 168 49 42 4 88 186 . . . 81 33 21 1898 Average 542 | 2 166 475 279 777 1036 646 1177 950 316 344 575 56 123 139 191 . 51 345 146 76 24 211 136 57 13 93 220 358 . 7 81 61 51 1368 2097 Influence Increases 16818 | 15 552 970 . 1505 907 1 1435 1329 38 279 654 104 466 248 193 . 256 945 116 176 196 333 182 12 21 210 801 747 . 173 276 367 156 2074 1081 Destroy 0b10 Robot/C 6235 | . 220 540 . 680 420 . 540 640 . 120 320 40 200 80 . . 60 440 80 80 . 80 75 . 15 60 15 255 . . 30 45 . 960 240 Destroy 0b10 Robot/NC 474 | 15 20 45 . 65 5 . . 65 . 10 . 5 30 10 . . 10 20 5 15 . 5 4 . . 4 32 4 . 8 4 16 12 20 45 Destroy Leader 1012 | . 52 130 . 164 20 . 40 140 . 22 30 12 56 10 . . 12 44 . . . 20 8 . . . 2 34 . 2 2 10 2 142 58 Allied During Kill 1352 | . . . . . 121 . 429 207 . 34 20 . . 1 . . 1 264 29 11 . . . . . . . 220 . . . . . . 15 Trap Triggered on 0b10 10 | . . . . . . . . . . . . . . . . . . . . . . . . . . . . . . . . . . 10 . Successful Hack 645 | . 20 24 . 45 12 . 7 37 . . 14 30 10 . 12 . 12 27 . . 7 10 35 . . . 30 60 . 23 86 80 46 18 . Select Force Hacks 320 | . 30 60 . . . . . . . . . . . . 180 . . . . . 50 . . . . . . . . . . . . . . Disable Machine 687 | . . 15 . 15 . . . 15 . 30 . . 15 . . . . 30 . 45 . . . . . 12 84 72 . 12 24 12 36 195 75 Anti-Garrison Action 788 | . . . . . 200 . 300 . . . 150 . . 50 . . . . . . . 50 . . . 38 . . . . . . . . . Destroy Structure 1584 | . . 6 . 26 84 1 59 15 23 48 75 2 5 37 1 . 26 30 2 10 4 48 . . 6 24 122 30 . 68 34 84 12 159 543 Partial Spotted 1017 | . 15 30 . 90 15 . 60 15 15 15 . . . . . . 75 60 . 15 30 12 24 12 . . 84 24 . 24 24 120 48 165 45 Lose Combat Pursuer 2694 | . 195 120 . 420 30 . . 195 . . 45 15 150 60 . . 60 30 . . 105 108 36 . . 72 432 48 . 36 72 . . 405 60 Influence Decreases 15548 | 15 270 510 473 929 376 756 458 2002 672 178 258 892 349 121 155 282 142 705 347 264 121 123 362 91 76 46 590 565 563 171 132 453 177 268 1656 Entered New Map 7232 | . . 164 453 165 296 706 218 760 602 88 118 375 . 41 135 282 . 59 157 74 24 33 152 91 19 2 82 195 563 . 2 65 27 18 1266 Time Decay 4375 | 15 260 326 20 434 . 50 . 502 70 50 . 118 196 . 20 . 102 326 70 120 30 . 190 . 52 . 368 170 . 158 130 278 140 170 10 Search Patrol Dispatched 100 | . . . . . . . . . . . . . 100 . . . . . . . . . . . . . . . . . . . . . . Lost Part 752 | . 10 10 . 30 20 . . 50 . . 20 . 50 40 . . 20 50 . 10 27 50 20 . 5 44 100 . . 6 . 100 . 70 20 Lost Ally 1940 | . . 10 . . 60 . 240 240 . 40 120 . 3 40 . . 20 270 120 60 40 40 . . . . 40 200 . 7 . 10 10 10 360 Purge Threat 1149 | . . . . 300 . . . 450 . . . 399 . . . . . . . . . . . . . . . . . . . . . . . Squads Dispatched 137 | . 3 4 . 4 . . . 13 . 1 . 2 2 . . . 3 2 . . 4 . 5 . 1 . 8 4 . 4 4 12 2 38 21 Investigation 38 | . 2 4 . 1 . . . 6 . 1 . 1 . . . . 2 . . . 2 . 4 . . . 5 2 . . 3 4 . 1 . Extermination 22 | . . . . . . . . 3 . . . 1 1 . . . . . . . . . 1 . . . 3 1 . 3 1 4 2 2 . Reinforcement 24 | . 1 . . 3 . . . 3 . . . . 1 . . . 1 2 . . 2 . . . 1 . . 1 . 1 . 4 . 4 . Assault 51 | . . . . . . . . 1 . . . . . . . . . . . . . . . . . . . . . . . . . 30 20 Garrison . | . . . . . . . . . . . . . . . . . . . . . . . . . . . . . . . . . . . . Intercept 2 | . . . . . . . . . . . . . . . . . . . . . . . . . . . . . . . . . . 1 1 Searches Triggered 1 | . . . . . . . . . . . . . 1 . . . . . . . . . . . . . . . . . . . . . . Construction Impeded 3 | . . . . 1 . . . 1 . . . . . . . . . 1 . . . . . . . . . . . . . . . . . Haulers Reinforced 2 | . . . . . . . . . . . . . . . . . 1 . . . . . . . . . . . . 1 . . . . . Active Scanning Responses . | . . . . . . . . . . . . . . . . . . . . . . . . . . . . . . . . . . . . Cargo Convoy Interrupts . | . . . . . . . . . . . . . . . . . . . . . . . . . . . . . . . . . . . . Alert ID Control Effect 1 | . . . . . . . . . . . . . . . . . . . . . . . . . . . 1 . . . . . . . . Stealth | -11 -10 -9 -9 -8 -8 -8 -8 -7 -7 -7 -7 -7 -7 -7 -7 -7 -5 -5 -5 -5 -5 -5 -4 -4 -4 -4 -4 -4 -4 -3 -3 -2 -2 -2 -1 --------- Run | Yrd Mat Mat Min Mat Gar Mat Gar Fac Was Fac Gar Fac Sto Gar Rec Scr Fac Ext Cet Arc Hub Gar Fac Was Fac Gar Fac Arm Lab Res Qua Res Tes Sec Acc Distress Signals 39 | . 1 4 . 4 1 . . 4 . . . . 4 . . . 1 2 1 . 3 . 2 . . . 2 3 . . 1 2 . 3 1 Communications Jammed 11 | . . . . . . . . . . . . . . . . . . . . . . . . . . . . . . . . . 1 10 . Distress Signals 11 | . . . . . . . . . . . . . . . . . . . . . . . . . . . . . . . . . 1 10 . Times Spotted 962 | . 30 39 . 68 23 . 19 57 5 8 18 5 32 11 . . 22 32 5 8 27 25 18 4 6 18 56 27 . 17 14 29 9 239 91 Peak Tracking Total 34 | . 5 9 . 20 7 . 9 12 5 4 6 3 10 5 . . 10 6 5 1 22 14 10 4 5 10 15 9 . 7 10 8 3 34 17 Tactical Retreats 99 | . 6 6 . 8 2 . . 5 . . 2 1 4 2 . . 3 2 . . 2 2 2 . . 2 13 4 . 3 1 8 3 16 2 ECM-based Alert Blocks 51 | . . . . . . . . . . . . . . . . . . . . . . . 1 . . . 1 . . 8 . 19 3 19 . Traps | -11 -10 -9 -9 -8 -8 -8 -8 -7 -7 -7 -7 -7 -7 -7 -7 -7 -5 -5 -5 -5 -5 -5 -4 -4 -4 -4 -4 -4 -4 -3 -3 -2 -2 -2 -1 ------- Run | Yrd Mat Mat Min Mat Gar Mat Gar Fac Was Fac Gar Fac Sto Gar Rec Scr Fac Ext Cet Arc Hub Gar Fac Was Fac Gar Fac Arm Lab Res Qua Res Tes Sec Acc Traps Triggered 25 | . 1 . . . . . 2 1 . . 4 1 . 3 . . . 1 . . . 2 1 . . 5 1 . . . . . . 1 2 Indirectly 2 | . . . . . . . . . . . . . . . . . . . . . . . . . . . . . . . . . . . 2 Trap Hack Attempts 8 | . . . . . 1 . . . . . . . . . . . . . . . . . . . . . . . . . . . . 7 . Triggered . | . . . . . . . . . . . . . . . . . . . . . . . . . . . . . . . . . . . . Disarmed 12 | . . . . . . . . . . . . . 6 . . . . . . . . . . . . . . . . 6 . . . . . Reprogrammed 2 | . . . . . 1 . . . . . . . . . . . . . . . . . . . . . . . . . . . . 1 . Reused 1 | . . . . . . . . . . . . . . . . . . . . . . . . . . . . . . . . . . 1 . Traps Extracted . | . . . . . . . . . . . . . . . . . . . . . . . . . . . . . . . . . . . . Installed . | . . . . . . . . . . . . . . . . . . . . . . . . . . . . . . . . . . . . Triggered 1 | . . . . . . . . . . . . . . . . . . . . . . . . . . . . . . . . . . 1 . Machines | -11 -10 -9 -9 -8 -8 -8 -8 -7 -7 -7 -7 -7 -7 -7 -7 -7 -5 -5 -5 -5 -5 -5 -4 -4 -4 -4 -4 -4 -4 -3 -3 -2 -2 -2 -1 ---------- Run | Yrd Mat Mat Min Mat Gar Mat Gar Fac Was Fac Gar Fac Sto Gar Rec Scr Fac Ext Cet Arc Hub Gar Fac Was Fac Gar Fac Arm Lab Res Qua Res Tes Sec Acc Machines Disabled 80 | . . 1 . 1 8 . 6 1 . 2 3 . 1 1 . . . 2 . 3 . 1 . . . 2 7 6 1 1 2 1 3 22 5 Max in Single Turn 2 | . . 1 . 1 2 . 2 1 . . 1 . 1 1 . . . . . 1 . 1 . . . 1 2 1 1 1 1 1 1 2 2 Garrison Access 10 | . . . . . . . . 2 . . . . . . . . 2 . . . . . . . . . 3 . . 2 . . 1 . . Garrison Relay 13 | . . . . . 3 . 3 . . . 4 . . 1 . . . . . . . 1 . . . 1 . . . . . . . . . Phase Generator 2 | . . . . . 1 . 1 . . . . . . . . . . . . . . . . . . . . . . . . . . . . Network Hub 1 | . . . . . . . . . . . . . . . . . . . . . 1 . . . . . . . . . . . . . . Energy Cycler 1 | . . . . . . . . . . . . . . . . . . . . . . . . . . . . . . . . . . . 1 Machines Repaired . | . . . . . . . . . . . . . . . . . . . . . . . . . . . . . . . . . . . . Machines Dismantled . | . . . . . . . . . . . . . . . . . . . . . . . . . . . . . . . . . . . . Machines Sabotaged 1 | . . . . . . . . . . . . . . . . . . . . . 1 . . . . . . . . . . . . . . Overloaded Fab Kills . | . . . . . . . . . . . . . . . . . . . . . . . . . . . . . . . . . . . . Hacking | -11 -10 -9 -9 -8 -8 -8 -8 -7 -7 -7 -7 -7 -7 -7 -7 -7 -5 -5 -5 -5 -5 -5 -4 -4 -4 -4 -4 -4 -4 -3 -3 -2 -2 -2 -1 --------- Run | Yrd Mat Mat Min Mat Gar Mat Gar Fac Was Fac Gar Fac Sto Gar Rec Scr Fac Ext Cet Arc Hub Gar Fac Was Fac Gar Fac Arm Lab Res Qua Res Tes Sec Acc Machines Accessed 196 | . 6 13 . 14 2 1 4 15 . 3 3 4 12 1 10 . 8 9 . . 9 1 8 . 1 . 17 8 . 11 11 10 9 6 . Terminals 132 | . 4 9 . 9 2 . 4 7 . 1 3 2 10 1 4 . 4 9 . . 8 1 4 . . . 10 5 . 9 8 6 7 5 . Fabricators 9 | . . . . . . . . 1 . . . . . . . . . . . . . . . . . . 3 3 . . . 1 1 . . Repair Stations 14 | . 1 . . 2 . . . 4 . 1 . 1 1 . . . 1 . . . . . 2 . . . . . . . . 1 . . . Recycling Units 11 | . 1 2 . . . . . . . . . . . . 6 . . . . . . . 2 . . . . . . . . . . . . Scanalyzers 12 | . . 2 . 2 . . . 1 . . . 1 . . . . 1 . . . . . . . . . 1 . . . 2 2 . . . Garrison Access 18 | . . . . 1 . 1 . 2 . 1 . . 1 . . . 2 . . . 1 . . . 1 . 3 . . 2 1 . 1 1 . Total Hacks 577 | . 22 40 . 42 2 2 9 49 . 6 6 15 23 3 17 . 16 12 . . 28 3 30 . 1 . 49 29 . 54 39 34 26 20 . Successful 384 | . 11 29 . 29 1 1 2 34 . 2 4 11 20 1 8 . 7 9 . . 24 1 21 . 1 . 40 19 . 32 28 20 15 14 . Failed 189 | . 11 10 . 12 1 1 7 15 . 4 2 3 3 2 9 . 9 3 . . 4 2 9 . . . 8 10 . 22 11 14 11 6 . Catastrophic 17 | . 1 . . . 1 1 2 1 . . . . . . 1 . 2 . . . 1 . . . . . . . . 2 1 3 1 . . Database Lockouts 4 | . . 1 . 1 . . . . . . . 1 . . . . . . . . . . . . . . 1 . . . . . . . . Manual 323 | . 13 23 . 23 1 1 . 25 . 5 2 7 7 . 17 . 10 2 . . 23 . 16 . . . 23 13 . 36 16 24 17 19 . Terminals 407 | . 13 27 . 24 2 . 9 21 . 2 6 8 17 3 11 . 8 12 . . 27 3 21 . . . 31 21 . 52 24 22 24 19 . Fabricators 32 | . . . . . . . . 6 . . . . . . . . . . . . . . . . . . 10 8 . . . 7 1 . . Repair Stations 55 | . 8 . . 10 . . . 16 . 2 . 5 5 . . . 3 . . . . . 4 . . . . . . . . 2 . . . Recycling Units 18 | . 1 6 . . . . . . . . . . . . 6 . . . . . . . 5 . . . . . . . . . . . . Scanalyzers 40 | . . 7 . 4 . . . 4 . . . 2 . . . . 2 . . . . . . . . . 4 . . . 14 3 . . . Garrison Access 25 | . . . . 4 . 2 . 2 . 2 . . 1 . . . 3 . . . 1 . . . 1 . 4 . . 2 1 . 1 1 . Terminal Hacks 124 | . 1 3 . 6 1 . 2 1 . . 4 3 11 1 . . . 8 . . 9 1 7 . . . 13 8 . 19 10 5 5 6 . Part Schematic 2 | . . . . . . . . 1 . . . . . . . . . . . . 1 . . . . . . . . . . . . . . Robot Schematic 1 | . . . . . . . . . . . . . . . . . . . . . . . . . . . . . . . 1 . . . . Robot Analysis 6 | . . . . . . . . . . . . . 1 . . . . . . . 1 . 2 . . . . 1 . . . 1 . . . Prototype ID Bank 20 | . . 1 . 3 . . . . . . . 1 . . . . . 1 . . 2 . 2 . . . 3 1 . 3 1 1 1 . . Open Door 16 | . . . . . . . 1 . . . 1 . 6 . . . . 7 . . . . . . . . . . . 1 . . . . . Level Access Points 1 | . . . . . . . . . . . . . . . . . . . . . . . . . . . . . . . . . . 1 . Branch Access Points 3 | . . . . . . . . . . . . . . . . . . . . . . . . . . . 2 . . 1 . . . . . Emergency Access Points 6 | . . . . . . . . . . . 1 . . 1 . . . . . . . 1 . . . . . 1 . 2 . . . . . Machine Index 2 | . . . . . . . . . . . . . . . . . . . . . . . . . . . . . . . 1 . 1 . . Terminal Index 7 | . . . . . . . . . . . . . . . . . . . . . 1 . 1 . . . 1 1 . 1 1 . . 1 . Fabricator Index 1 | . . . . . . . . . . . . . . . . . . . . . . . . . . . . . . 1 . . . . . Garrison Index 3 | . . . . . . . . . . . . 1 . . . . . . . . 1 . . . . . . . . . . . . 1 . Unreport Threat 3 | . . . . 2 . . . . . . . 1 . . . . . . . . . . . . . . . . . . . . . . . Locate Traps 12 | . 1 1 . . . . . . . . . . 1 . . . . . . . 1 . 1 . . . 2 . . 3 2 . . . . Disarm Traps 2 | . . . . . . . . . . . . . 1 . . . . . . . . . . . . . . . . 1 . . . . . Surveillance Status 1 | . . . . . . . . . . . . . . . . . . . . . . . . . . . 1 . . . . . . . . Recall Investigation 1 | . . 1 . . . . . . . . . . . . . . . . . . . . . . . . . . . . . . . . . Recall Extermination 1 | . . . . . . . . . . . . . . . . . . . . . . . . . . . 1 . . . . . . . . Recall Reinforcements 1 | . . . . . . . . . . . . . . . . . . . . . . . . . . . . . . 1 . . . . . Zone Layout 31 | . . . . 1 . . . . . . . . 2 . . . . . . . 2 . 1 . . . 3 4 . 5 4 3 3 3 . Garrison Registry 3 | . . . . . 1 . 1 . . . 1 . . . . . . . . . . . . . . . . . . . . . . . . Patrol Navigation 1 | . . . . . . . . . . . 1 . . . . . . . . . . . . . . . . . . . . . . . . Fabricator Hacks 18 | . . . . . . . . 3 . . . . . . . . . . . . . . . . . . 6 6 . . . 2 1 . . Network Status 4 | . . . . . . . . 1 . . . . . . . . . . . . . . . . . . . 1 . . . 1 1 . . Load Schematic 8 | . . . . . . . . 1 . . . . . . . . . . . . . . . . . . 3 3 . . . 1 . . . Build 6 | . . . . . . . . 1 . . . . . . . . . . . . . . . . . . 3 2 . . . . . . . Repair Station Hacks 33 | . 5 . . 8 . . . 12 . . . 2 4 . . . . . . . . . 2 . . . . . . . . . . . . Scan Component 16 | . 2 . . 4 . . . 6 . . . 1 2 . . . . . . . . . 1 . . . . . . . . . . . . Repair 16 | . 2 . . 4 . . . 6 . . . 1 2 . . . . . . . . . 1 . . . . . . . . . . . . Refit 1 | . 1 . . . . . . . . . . . . . . . . . . . . . . . . . . . . . . . . . . Recycling Unit Hacks 6 | . . 2 . . . . . . . . . . . . . . . . . . . . 4 . . . . . . . . . . . . Process 2 | . . . . . . . . . . . . . . . . . . . . . . . 2 . . . . . . . . . . . . Retrieve Matter 2 | . . . . . . . . . . . . . . . . . . . . . . . 2 . . . . . . . . . . . . Retrieve Components 2 | . . 2 . . . . . . . . . . . . . . . . . . . . . . . . . . . . . . . . . Scanalyzer 31 | . . 6 . 4 . . . 3 . . . 1 . . . . . . . . . . . . . . 3 . . . 11 3 . . . Insert Component 10 | . . 2 . . . . . 1 . . . . . . . . . . . . . . . . . . 1 . . . 5 1 . . . Analyze 5 | . . 2 . . . . . 1 . . . . . . . . . . . . . . . . . . 1 . . . 1 . . . . Retrieve Study 16 | . . 2 . 4 . . . 1 . . . 1 . . . . . . . . . . . . . . 1 . . . 5 2 . . . Garrison Access Hacks 20 | . . . . 1 . 1 . 2 . 1 . . 1 . . . 3 . . . 1 . . . 1 . 4 . . 2 1 . 1 1 . Unlock Access 7 | . . . . 1 . 1 . . . 1 . . 1 . . . . . . . 1 . . . 1 . . . . . . . . 1 . Seal Access 10 | . . . . . . . . 2 . . . . . . . . 2 . . . . . . . . . 3 . . 2 . . 1 . . Coupler Status 3 | . . . . . . . . . . . . . . . . . 1 . . . . . . . . . 1 . . . 1 . . . . Unauthorized Hacks 152 | . 5 18 . 10 . . . 13 . 1 . 5 4 . 8 . 4 1 . . 14 . 8 . . . 14 5 . 11 6 10 8 7 . Terminals 128 | . 4 15 . 9 . . . 8 . 1 . 4 3 . 2 . 3 1 . . 14 . 6 . . . 13 4 . 11 6 9 8 7 . Track 11 | . . . . . . . . . . . . . . . . . . . . . 6 . 1 . . . 2 . . . . 1 . 1 . Assimilate 12 | . . 1 . . . . . 1 . . . . . . . . 2 1 . . . . . . . . 2 . . 1 . 2 1 1 . Botnet 35 | . 1 5 . 3 . . . 4 . . . 2 1 . . . 1 . . . 4 . . . . . 2 2 . 4 1 1 3 1 . Disrupt 4 | . 1 1 . . . . . . . . . . . . . . . . . . . . 1 . . . 1 . . . . . . . . Operators 3 | . 1 1 . . . . . . . . . . . . . . . . . . . . . . . . . . . 1 . . . . . Skim 61 | . 1 7 . 6 . . . 3 . 1 . 2 2 . 2 . . . . . 2 . 4 . . . 6 2 . 5 5 5 4 4 . Sabotage 2 | . . . . . . . . . . . . . . . . . . . . . 2 . . . . . . . . . . . . . . Fabricators 4 | . . . . . . . . 1 . . . . . . . . . . . . . . . . . . 1 1 . . . 1 . . . Prioritize 3 | . . . . . . . . 1 . . . . . . . . . . . . . . . . . . 1 . . . . 1 . . . Recompile 1 | . . . . . . . . . . . . . . . . . . . . . . . . . . . . 1 . . . . . . . Repair Stations 10 | . . . . 1 . . . 4 . . . 1 1 . . . 1 . . . . . 2 . . . . . . . . . . . . Mechanics 4 | . . . . . . . . 1 . . . 1 1 . . . . . . . . . 1 . . . . . . . . . . . . Patch 6 | . . . . 1 . . . 3 . . . . . . . . 1 . . . . . 1 . . . . . . . . . . . . Recycling Units 9 | . 1 2 . . . . . . . . . . . . 6 . . . . . . . . . . . . . . . . . . . . Reject 1 | . . 1 . . . . . . . . . . . . . . . . . . . . . . . . . . . . . . . . . Tunnel 8 | . 1 1 . . . . . . . . . . . . 6 . . . . . . . . . . . . . . . . . . . . Scanalyzers 1 | . . 1 . . . . . . . . . . . . . . . . . . . . . . . . . . . . . . . . . Extract 1 | . . 1 . . . . . . . . . . . . . . . . . . . . . . . . . . . . . . . . . Garrison Access . | . . . . . . . . . . . . . . . . . . . . . . . . . . . . . . . . . . . . Data Cores Recovered 2 | . . . . . . . . . . . . . . . . . . . . . . . . . . . 1 . . . . . 1 . . Used 2 | . . . . . . . . . . . . . . . . . . . . . . . . . . . 1 . . . . . 1 . . Hacking Detections 123 | . 5 10 . 9 1 1 3 12 . 3 3 4 5 1 4 . 7 6 . . 3 1 4 . . . 9 3 . 5 11 4 6 3 . Full Trace Events 17 | . . 2 . 2 . . 2 3 . . . 1 . . 1 . 1 . . . . . 1 . . . 3 1 . . . . . . . Feedback Events 2 | . . . . . . . 2 . . . . . . . . . . . . . . . . . . . . . . . . . . . . Corruption 2 | . . . . . . . 2 . . . . . . . . . . . . . . . . . . . . . . . . . . . . Feedback Blocked . | . . . . . . . . . . . . . . . . . . . . . . . . . . . . . . . . . . . . Robot Schematics Acquired 3 | . . . . . . . . . . . . . . . . . . . . . . . . . . . . . . . 3 . . . . Robots Built . | . . . . . . . . . . . . . . . . . . . . . . . . . . . . . . . . . . . . Authchips . | . . . . . . . . . . . . . . . . . . . . . . . . . . . . . . . . . . . . Time . | . . . . . . . . . . . . . . . . . . . . . . . . . . . . . . . . . . . . Total Robot Build Rating . | . . . . . . . . . . . . . . . . . . . . . . . . . . . . . . . . . . . . Part Schematics Acquired 15 | . . 4 . . . . . 2 . . . . . . . . . . . . 1 . . . . . 1 . . . 7 . . . . Parts Built 10 | . . . . . . . . 2 . . . . . . . . . . . . . . . . . . 6 2 . . . . . . . Authchips 1 | . . . . . . . . . . . . . . . . . . . . . . . . . . . . 1 . . . . . . . Time 231 | . . . . . . . . 18 . . . . . . . . . . . . . . . . . . 125 88 . . . . . . . Total Part Build Rating 44 | . . . . . . . . 6 . . . . . . . . . . . . . . . . . . 30 8 . . . . . . . Part Studies Acquired 16 | . . 2 . 4 . . . 1 . . . 1 . . . . . . . . . . . . . . 1 . . . 5 2 . . . Parts Repaired 15 | . 2 . . 4 . . . 5 . . . 1 2 . . . . . . . . . 1 . . . . . . . . . . . . Time 831 | . 52 . . 210 . . . 339 . . . 30 130 . . . . . . . . . 70 . . . . . . . . . . . . Parts Recycled . | . . . . . . . . . . . . . . . . . . . . . . . . . . . . . . . . . . . . Recycled Matter 13 | . . . . . . . . . . . . . . . . . . . . . . . 13 . . . . . . . . . . . . Retrieved Matter 13 | . . . . . . . . . . . . . . . . . . . . . . . 13 . . . . . . . . . . . . Retrieved Components 20 | . . 20 . . . . . . . . . . . . . . . . . . . . . . . . . . . . . . . . . Parts Scanalyzed 5 | . . 2 . . . . . 1 . . . . . . . . . . . . . . . . . . 1 . . . 1 . . . . Part Schematics Acquired 5 | . . 2 . . . . . 1 . . . . . . . . . . . . . . . . . . 1 . . . 1 . . . . Parts Damaged . | . . . . . . . . . . . . . . . . . . . . . . . . . . . . . . . . . . . . Bothacking | -11 -10 -9 -9 -8 -8 -8 -8 -7 -7 -7 -7 -7 -7 -7 -7 -7 -5 -5 -5 -5 -5 -5 -4 -4 -4 -4 -4 -4 -4 -3 -3 -2 -2 -2 -1 ------------ Run | Yrd Mat Mat Min Mat Gar Mat Gar Fac Was Fac Gar Fac Sto Gar Rec Scr Fac Ext Cet Arc Hub Gar Fac Was Fac Gar Fac Arm Lab Res Qua Res Tes Sec Acc Used RIF Installer 7 | . . . . . 2 . 2 . . . 1 . . 1 . . . . . . . 1 . . . . . . . . . . . . . Coupler Efficiency 1 | . . . . . 1 . . . . . . . . . . . . . . . . . . . . . . . . . . . . . . Hotswap 1 | . . . . . . . 1 . . . . . . . . . . . . . . . . . . . . . . . . . . . . Command Fork 1 | . . . . . . . 1 . . . . . . . . . . . . . . . . . . . . . . . . . . . . Threat Obfuscator 1 | . . . . . . . . . . . . . . . . . . . . . . 1 . . . . . . . . . . . . . Patrol Navigation 1 | . . . . . . . . . . . 1 . . . . . . . . . . . . . . . . . . . . . . . . Alert ID Control 1 | . . . . . . . . . . . . . . 1 . . . . . . . . . . . . . . . . . . . . . Robots Hacked 43 | . . . . . 8 . 4 5 . . 4 1 . 3 . . 3 4 . 4 . . 1 . . . 4 . . . 2 . . . . Non-combat 13 | . . . . . 1 . . 3 . . . 1 . . . . . . . 4 . . 1 . . . 3 . . . . . . . . Combat 30 | . . . . . 7 . 4 2 . . 4 . . 3 . . 3 4 . . . . . . . . 1 . . . 2 . . . . Robot Hacks Applied 54 | . . . . . 8 . 5 11 . . 4 4 . 3 . . 3 4 . 4 . . 1 . . . 4 . . . 3 . . . . parse_system 4 | . . . . . 1 . 1 . . . . . . . . . 1 1 . . . . . . . . . . . . . . . . . generate_anomaly 1 | . . . . . . . . 1 . . . . . . . . . . . . . . . . . . . . . . . . . . . find_chute 1 | . . . . . . . . 1 . . . . . . . . . . . . . . . . . . . . . . . . . . . drop_inventory 2 | . . . . . . . . . . . . . . . . . . . . . . . 1 . . . 1 . . . . . . . . purge_threat 6 | . . . . . . . . 4 . . . 2 . . . . . . . . . . . . . . . . . . . . . . . block_reporting 1 | . . . . . . . . 1 . . . . . . . . . . . . . . . . . . . . . . . . . . . summon_haulers 1 | . . . . . . . . . . . . 1 . . . . . . . . . . . . . . . . . . . . . . . map_route 1 | . . . . . . . . . . . . . . . . . . . . . . . . . . . 1 . . . . . . . . disable_scanner 2 | . . . . . . . . . . . . . . . . . . . . . . . . . . . . . . . 2 . . . . report_prototypes 1 | . . . . . . . . . . . . . . . . . . . . . . . . . . . . . . . 1 . . . . scatter_targeting 1 | . . . . . 1 . . . . . . . . . . . . . . . . . . . . . . . . . . . . . . spike_heat 1 | . . . . . . . . . . . . . . . . . . 1 . . . . . . . . . . . . . . . . . reboot_system 3 | . . . . . 2 . . 1 . . . . . . . . . . . . . . . . . . . . . . . . . . . go_dormant 1 | . . . . . . . . . . . . . . . . . 1 . . . . . . . . . . . . . . . . . . overwrite_iff 6 | . . . . . . . 1 1 . . . . . 3 . . 1 . . . . . . . . . . . . . . . . . . formatsys_low 9 | . . . . . 1 . . 2 . . . 1 . . . . . . . 4 . . . . . . 1 . . . . . . . . formatsys_high 13 | . . . . . 3 . 3 . . . 4 . . . . . . 2 . . . . . . . . 1 . . . . . . . . Relay Couplers Released 64 | . . . . . 16 . 14 2 . . 17 . . 4 . . 3 . . . . 3 . . . 5 . . . . . . . . . Machine Destruction 56 | . . . . . 12 . 10 2 . . 17 . . 4 . . 3 . . . . 3 . . . 5 . . . . . . . . . Programmers 8 | . . . . . 4 . 4 . . . . . . . . . . . . . . . . . . . . . . . . . . . . Attached 18 | . . . . . 4 . 2 1 . . 3 . . 2 . . 1 1 . 1 . . 1 . . 1 1 . . . . . . . . Fabnet Peak Effective % . | . . . . . . . . . . . . . . . . . . . . . . . . . . . . . . . . . . . . Robots Rewired 33 | . . . . . 19 . . . . . 2 . . . . . . 12 . . . . . . . . . . . . . . . . . Allies Hacked 3 | . . . . . . . . . . . . . . . . . . . . . 2 . . . . . 1 . . . . . . . . Hacks Repelled . | . . . . . . . . . . . . . . . . . . . . . . . . . . . . . . . . . . . . Allies | -11 -10 -9 -9 -8 -8 -8 -8 -7 -7 -7 -7 -7 -7 -7 -7 -7 -5 -5 -5 -5 -5 -5 -4 -4 -4 -4 -4 -4 -4 -3 -3 -2 -2 -2 -1 -------- Run | Yrd Mat Mat Min Mat Gar Mat Gar Fac Was Fac Gar Fac Sto Gar Rec Scr Fac Ext Cet Arc Hub Gar Fac Was Fac Gar Fac Arm Lab Res Qua Res Tes Sec Acc Total Allies 176 | . . 1 . . 23 . 6 4 19 . 9 1 . 3 . . 3 25 . 6 . 2 . . . . 3 10 . 1 . 1 1 1 57 Largest Group 23 | . . . . . 23 20 20 12 19 15 5 1 1 1 . . 2 13 10 6 6 2 . . . . 1 10 . 1 . 1 1 1 9 Highest-Rated Group 481 | . . . . . 298 262 292 225 465 409 208 26 26 12 . . 38 380 287 270 270 160 . . . . 49 481 . 9 . 26 24 10 124 Highest-Rated Ally 159 | . . . . . 23 23 31 31 35 35 80 26 26 12 . . 26 159 39 45 45 80 . . . . 49 58 . 9 . 26 24 10 15 Total Orders 24 | . . . . . 7 1 3 3 . . 4 2 . . . . . . 2 1 . . . . . . 1 . . . . . . . . STAY 10 | . . . . . 5 . . 1 . . 3 1 . . . . . . . . . . . . . . . . . . . . . . . ROAM 2 | . . . . . . . . . . . . . . . . . . . 1 1 . . . . . . . . . . . . . . . FOLLOW 4 | . . . . . 1 . . . . . 1 1 . . . . . . 1 . . . . . . . . . . . . . . . . AID 8 | . . . . . 1 1 3 2 . . . . . . . . . . . . . . . . . . 1 . . . . . . . . Ally Attacks 766 | . . . . . 14 . 86 91 145 22 29 . . 7 . . 6 129 60 13 . 7 . . . . 7 97 . . . . . . 53 Total Damage 17852 | . . . . . 142 . 1368 1466 4148 893 646 . . 72 . . 61 3125 1049 168 . 406 . . . . 335 2976 . . . . . . 997 Kills 116 | . . . . . 3 . 19 18 10 8 8 . . 1 . . . 20 4 1 . . . . . . 1 17 . . . . . . 6 Allies Corrupted 2 | . . . . . . . 1 . . . . . . . . . . . . . . . . . . . 1 . . . . . . . . Allies Melted . | . . . . . . . . . . . . . . . . . . . . . . . . . . . . . . . . . . . . Intel | -11 -10 -9 -9 -8 -8 -8 -8 -7 -7 -7 -7 -7 -7 -7 -7 -7 -5 -5 -5 -5 -5 -5 -4 -4 -4 -4 -4 -4 -4 -3 -3 -2 -2 -2 -1 ------- Run | Yrd Mat Mat Min Mat Gar Mat Gar Fac Was Fac Gar Fac Sto Gar Rec Scr Fac Ext Cet Arc Hub Gar Fac Was Fac Gar Fac Arm Lab Res Qua Res Tes Sec Acc Active Infowar (turns) 4790 | 3 442 . . . . . . 230 . . . . . . . . . . . . . . 4 18 27 . 757 351 191 578 271 603 286 724 305 Sensors 3307 | . . . . . . . . . . . . . . . . . . . . . . . . . . . 742 351 191 578 271 594 286 294 . IFF 1 | . . . . . . . . . . . . . . . . . . . . . . . . . . . . . . 1 . . . . . Terrain 1 | . . . . . . . . . . . . . . . . . . . . . . . . . . . . . . 1 . . . . . Structural 230 | . . . . . . . . 230 . . . . . . . . . . . . . . . . . . . . . . . . . . . Traps 797 | . . . . . . . . . . . . . . . . . . . . . . . . . . . . 275 191 331 . . . . . Seismic 460 | 3 442 . . . . . . . . . . . . . . . . . . . . . . . . . 15 . . . . . . . . Cloaking 3005 | . . . . . . . . . . . . . . . . . . . . . . . . . . . . 340 190 578 271 390 286 645 305 Jamming 766 | . . . . . . . . . . . . . . . . . . . . . . . . . . . . . . . . 334 279 153 . ECM 1215 | . . . . . . . . . . . . . . . . . . . . . . . 4 18 27 . 96 . . 130 . 411 283 246 . Robot Analysis Total 6 | . . . . . . . . . . . . . 1 . . . . . . . 1 . 2 . . . . 1 . . . 1 . . . Derelict Logs Recovered 1 | . . . 1 . . . . . . . . . . . . . . . . . . . . . . . . . . . . . . . . Drone Launches . | . . . . . . . . . . . . . . . . . . . . . . . . . . . . . . . . . . . . Drone Recoveries . | . . . . . . . . . . . . . . . . . . . . . . . . . . . . . . . . . . . . Exploration | -11 -10 -9 -9 -8 -8 -8 -8 -7 -7 -7 -7 -7 -7 -7 -7 -7 -5 -5 -5 -5 -5 -5 -4 -4 -4 -4 -4 -4 -4 -3 -3 -2 -2 -2 -1 ------------- Run | Yrd Mat Mat Min Mat Gar Mat Gar Fac Was Fac Gar Fac Sto Gar Rec Scr Fac Ext Cet Arc Hub Gar Fac Was Fac Gar Fac Arm Lab Res Qua Res Tes Sec Acc Turns Passed 14388 | 63 597 722 57 1076 904 112 541 1354 155 101 489 305 424 262 50 97 277 733 150 258 89 263 395 18 173 265 854 351 191 578 271 603 286 934 390 Spaces Moved 24067 | 41 704 978 156 1283 1079 36 726 2157 249 298 890 567 539 346 197 393 748 875 134 268 289 454 855 76 176 324 1708 581 244 1550 538 1509 725 1556 818 Core 278 | 41 236 . . . . . . . . . . . . . . . . 1 . . . . . . . . . . . . . . . . . Treads 12 | . 12 . . . . . . . . . . . . . . . . . . . . . . . . . . . . . . . . . . Legs 1674 | . . . . . . . . . . . . . . . . . . . . . . . . . . . . . . . . . . 856 818 Wheels . | . . . . . . . . . . . . . . . . . . . . . . . . . . . . . . . . . . . . Hover . | . . . . . . . . . . . . . . . . . . . . . . . . . . . . . . . . . . . . Flight 22103 | . 456 978 156 1283 1079 36 726 2157 249 298 890 567 539 346 197 393 748 874 134 268 289 454 855 76 176 324 1708 581 244 1550 538 1509 725 700 . Fastest Speed 11 | 50 37 30 34 26 28 28 28 25 25 25 23 23 23 11 23 23 20 20 20 20 17 17 23 23 22 18 13 24 23 12 28 15 14 18 30 Average Speed 26 | 50 43 33 34 26 28 28 28 26 25 25 23 25 23 22 23 23 20 20 20 20 21 24 23 23 23 24 27 26 25 24 29 23 22 27 30 Slowest Speed 160 | 50 160 120 34 31 32 28 28 95 25 25 88 89 94 23 23 23 23 150 20 20 24 27 27 23 26 30 80 27 27 28 31 76 23 86 30 Overloaded Moves 88 | . . . . . . . . . . . . . . 16 . . . . . . 10 1 . . . 20 6 . . 30 . . 5 . . Propulsion Burnouts . | . . . . . . . . . . . . . . . . . . . . . . . . . . . . . . . . . . . . Robots Hopped 205 | . 8 21 6 14 . . 1 19 2 6 . . 2 . 5 . 5 7 . . 6 3 16 4 1 2 21 . . 9 13 10 14 10 . Potential Cave-ins 12 | . . . . . . . . . . . . . . . . . . . . . 4 . . . . . . . . . . . . . 8 Cave-ins Triggered 2 | . . . . . . . . . . . . . . . . . . . . . . . . . . . . . . . . . . 1 1 Teleports 47 | . . . . . . . . . . . . . . . . . . . . . . . . . . . . . . . . . . 16 31 Exploration Rate (%) 51 | 3 80 76 24 81 71 6 69 39 84 11 85 12 81 41 43 42 26 86 50 95 43 49 24 79 5 38 41 40 93 41 83 40 79 70 33 Regions Visited 35 Branch Regions 13 Pre-discovered Areas 16 | . 1 4 . 3 . . . . . . . . . . 6 . . . . . . . . . . . 1 . . 1 . . . . . Known Exits Taken 19 | . . . 1 1 . 1 . . . 1 . 1 1 . 1 1 1 . . . 1 . . . 1 . 1 1 1 1 1 1 1 1 . Unknown Exits Taken 6 | 1 1 1 . . . . . . . . . . . . . . . 1 1 1 . . . . . . . . . . . . . . . Scrap Searched 6 | . . . 2 . . . . . . . . . . . . 4 . . . . . . . . . . . . . . . . . . . Spaces Dug 366 | . . 5 . . 14 1 6 13 . . 15 2 4 7 1 . 13 13 . . 4 6 . . 3 . 21 14 . 34 17 28 4 33 108 Terrain Destroyed 803 | . . 5 . 20 88 1 78 13 1 . 15 2 4 7 1 . 13 13 2 9 4 6 1 . 3 . 71 14 . 34 17 28 4 101 248 Melee 213 | . . 5 . . 14 1 6 13 . . 15 2 4 7 1 . 13 13 . . 1 6 . . . . 6 14 . 34 17 28 4 9 . Projectile 345 | . . . . . 2 . . . 1 . . . . . . . . . 2 9 3 . 1 . 3 . 16 . . . . . . 92 216 AOE 245 | . . . . 20 72 . 72 . . . . . . . . . . . . . . . . . . . 49 . . . . . . . 32 Terrain Rammed . | . . . . . . . . . . . . . . . . . . . . . . . . . . . . . . . . . . . . Walls Destroyed . | . . . . . . . . . . . . . . . . . . . . . . . . . . . . . . . . . . . . Machines Disabled . | . . . . . . . . . . . . . . . . . . . . . . . . . . . . . . . . . . . . Actions | -11 -10 -9 -9 -8 -8 -8 -8 -7 -7 -7 -7 -7 -7 -7 -7 -7 -5 -5 -5 -5 -5 -5 -4 -4 -4 -4 -4 -4 -4 -3 -3 -2 -2 -2 -1 --------- Run | Yrd Mat Mat Min Mat Gar Mat Gar Fac Was Fac Gar Fac Sto Gar Rec Scr Fac Ext Cet Arc Hub Gar Fac Was Fac Gar Fac Arm Lab Res Qua Res Tes Sec Acc Total 29772 | 71 881 1190 152 1748 1538 134 1007 2752 330 307 1082 695 766 450 194 398 823 1348 227 427 300 540 1009 71 283 477 1943 726 361 1657 597 1638 800 1915 935 Wait 3458 | 14 96 86 2 300 277 97 194 436 71 . 45 87 131 14 . 4 32 336 75 124 4 27 124 . 80 77 129 97 101 39 29 49 52 152 77 Move 23646 | 40 687 936 143 1257 1078 35 723 2119 245 286 889 566 535 345 187 392 737 860 133 267 276 448 824 68 174 319 1667 580 243 1532 516 1489 697 1537 816 Hop 185 | . 8 20 6 12 . . 1 19 1 5 . . 2 . 4 . 5 7 . . 6 2 15 3 1 2 19 . . 8 8 9 13 9 . Pick Up 90 | . 6 6 . 4 1 . 3 7 2 . 4 2 4 3 . 1 3 1 . . 1 2 7 . 3 2 4 4 1 3 4 2 2 8 . Fast Attach 160 | 6 6 4 . 7 5 . . 11 . 2 4 . 3 3 1 . 5 9 . 2 2 2 5 . 3 2 22 4 3 8 1 19 4 16 1 Attach 94 | 1 3 4 . 4 2 . 1 7 . 1 1 2 3 2 . 1 4 5 1 2 1 1 5 . 2 3 3 4 2 3 2 1 1 17 5 Detach 38 | 2 1 . . . 1 . . 3 . 1 . 1 . . . . 1 5 . 1 2 . 2 . . 2 3 . 1 4 . . 1 5 2 Swap 222 | . 4 22 1 20 12 . 8 28 2 . 6 8 19 7 . . 2 6 6 2 4 3 5 . 3 2 4 4 3 9 5 4 5 15 3 Drop 159 | 1 7 23 . 17 5 . 3 5 1 3 5 1 12 2 1 . 2 5 . 2 . 2 6 . 2 . 14 4 2 6 5 9 5 8 1 Fire 781 | 7 61 79 . 127 51 . 29 67 8 7 20 14 44 20 . . 3 6 12 19 1 19 15 . 11 28 24 . . . . . . 83 26 Melee 658 | . . 10 . . 101 2 22 48 . 2 43 13 13 32 1 . 29 53 . 7 3 17 1 . 4 . 52 28 5 45 27 56 20 24 . Ram . | . . . . . . . . . . . . . . . . . . . . . . . . . . . . . . . . . . . . Kick 2 | . . . . . . . . . . . . . . . . . . . . . . . . . . . . . . . . . . 1 1 Crush 2 | . 2 . . . . . . . . . . . . . . . . . . . . . . . . . . . . . . . . . . Escape Stasis 210 | . . . . . . . 20 . . . 60 . . 22 . . . 15 . . . 17 . . . 40 . . . . . . . 33 3 Rewire 58 | . . . . . 4 . 3 2 . . 5 1 . . . . . 40 . 1 . . . . . . 2 . . . . . . . . Trap 8 | . . . . . 1 . . . . . . . . . . . . . . . . . . . . . . . . . . . . 7 . Miscellaneous 1 | . . . . . . . . . . . . . . . . . . . . . . . . . . . . 1 . . . . . . . Route ------- -11/Scrapyard -10/Materials (discovered 4 exits: *Mat x3 / [*Min]) -9/Materials (discovered 5 exits: *Mat x3 / [*Min x2]) -9/Mines (discovered 2 exits: *Mat x2) -8/Materials (discovered 4 exits: *Fac x3 / Gar) -8/Garrison (discovered 3 exits: *Mat x3) -8/Materials -8/Garrison (discovered 3 exits: *Fac x3) -7/Factory (discovered 3 exits: Fac x2 / Sto) -7/Waste -7/Factory -7/Garrison (discovered 4 exits: *Fac x4) -7/Factory -7/Storage (discovered 3 exits: *Fac / Rec / Gar) -7/Garrison (discovered 2 exits: *Rec x2) -7/Recycling (discovered 2 exits: Fac / *Scr) -7/Scraptown -5/Factory (discovered 3 exits: *Fac / *Ext x2) -5/Extension (discovered 2 exits: *Fac / [*Cet]) -5/Cetus -5/Archives (discovered 3 exits: *Fac / *Hub x2) -5/Hub_04(d) (discovered 3 exits: *Fac x2 / Gar) -5/Garrison (discovered 2 exits: *Fac x2) -4/Factory -4/Waste -4/Factory -4/Garrison -4/Factory (discovered 7 exits: *Res x4 / *Upp x2 / *Arm) -4/Armory -4/Lab -3/Research (discovered 5 exits: *Res x3 / *Qua x2) -3/Quarantine -2/Research (discovered 3 exits: *Acc x2 / *Tes) -2/Testing (discovered 3 exits: *Acc / *Sec / *Frg) -2/Section 7 (discovered 2 exits: *Acc / Gar) -1/Access (discovered 2 exits: [*Sur] / [Com]) To Fleet Rendezvous History --------- Turn | Location | Event 7 | -11/Scrapyard | Discovered new exit (range 16) 64 | -11/Scrapyard | Entered Materials 107 | -10/Materials | Discovered new exit (range 14) 124 | -10/Materials | Discovered new exit (range 5) 220 | -10/Materials | Discovered new exit (range 3) 235 | -10/Materials | Discovered new exit (range 15) 308 | -10/Materials | Build established: Mutant 314 | -10/Materials | Core integrity fell below 50% 596 | -10/Materials | Repaired Flight Unit 624 | -10/Materials | Repaired Flight Unit 661 | -10/Materials | Entered another Materials area 661 | -9/Materials | Evolved 2 slots: Propulsion x1, Weapon x1 745 | -9/Materials | Discovered new exit (range 16) 893 | -9/Materials | Central database locked down 918 | -9/Materials | Discovered new exit (range 16) 989 | -9/Materials | Discovered new exit (range 6) 1170 | -9/Materials | Destroyed 7 combat bots 1244 | -9/Materials | Identified exit to Materials 1270 | -9/Materials | Learned 4 Recycling zone layouts 1287 | -9/Materials | Learned location of Storage (-7) 1294 | -9/Materials | Learned Storage emergency access door positions 1342 | -9/Materials | Learned location of Zion (-6) 1383 | -9/Materials | Entered Mines 1422 | -9/Mines | Learned Materials trap positions 1440 | -9/Mines | Entered Materials 1440 | -8/Materials | Evolved 2 slots: Propulsion x1, Utility x1 1441 | -8/Materials | Loaded intel: 11 trap records 1487 | -8/Materials | Discovered new exit (range 16) 1724 | -8/Materials | Build established: Sprinter 1878 | -8/Materials | Repaired Imp. Assault Rifle 1918 | -8/Materials | Repaired Lgt. Nuclear Core 2129 | -8/Materials | Discovered new exit (range 13) 2131 | -8/Materials | Central database locked down 2279 | -8/Materials | Learned location of Recycling (-7) 2313 | -8/Materials | Learned 4 Recycling zone layouts 2335 | -8/Materials | Identified exit to Factory 2352 | -8/Materials | Repaired Imp. Flight Unit 2352 | -8/Materials | Learned Storage security intel 2358 | -8/Materials | Learned 4 Recycling zone layouts 2376 | -8/Materials | Learned location of 2 exits from Factory 2423 | -8/Materials | Repaired Imp. Cesium-ion Thruster 2516 | -8/Materials | Identified exit to Garrison 2516 | -8/Materials | Entered Garrison 2517 | -8/Garrison | Identified exit to Materials 2564 | -8/Garrison | Triggered checkpoint 2636 | -8/Garrison | Phase Generator disabled 2643 | -8/Garrison | Discovered exit to Materials (range 85) 2643 | -8/Garrison | Discovered exit to Materials (range 48) 2643 | -8/Garrison | Discovered exit to Materials (range 15) 2721 | -8/Garrison | Installed Relay Interface Framework 2824 | -8/Garrison | Triggered checkpoint 2833 | -8/Garrison | Expanded RIF knowledge: Coupler Efficiency 2849 | -8/Garrison | Triggered checkpoint 2955 | -8/Garrison | Garrison Relay disabled 2977 | -8/Garrison | Core integrity fell below 50% 3064 | -8/Garrison | Triggered checkpoint 3182 | -8/Garrison | Triggered checkpoint 3185 | -8/Garrison | Garrison Relay disabled 3198 | -8/Garrison | Garrison Relay disabled 3208 | -8/Garrison | Build established: Commander-Sprinter 3412 | -8/Garrison | Lost 3 allies 3420 | -8/Garrison | Entered Materials 3420 | -8/Materials | Accompanied by 20 allies 3428 | -8/Materials | Identified exit to Garrison 3532 | -8/Materials | Entered Garrison 3532 | -8/Garrison | Accompanied by 20 allies 3538 | -8/Garrison | Triggered checkpoint 3547 | -8/Garrison | Garrison Relay disabled 3577 | -8/Garrison | Lost 3 allies 3617 | -8/Garrison | Triggered checkpoint 3623 | -8/Garrison | P-60 Hacker assimilated allied Trooper 3g 3664 | -8/Garrison | Triggered checkpoint 3695 | -8/Garrison | Lost 4 allies 3708 | -8/Garrison | Triggered checkpoint 3764 | -8/Garrison | Phase Generator disabled 3801 | -8/Garrison | Discovered exit to Factory (range 50) 3801 | -8/Garrison | Discovered exit to Factory (range 61) 3801 | -8/Garrison | Discovered exit to Factory (range 7) 3811 | -8/Garrison | Garrison Relay disabled 3869 | -8/Garrison | Expanded RIF knowledge: Command Fork 3882 | -8/Garrison | Triggered checkpoint 3891 | -8/Garrison | Rescued a captive Derelict 3892 | -8/Garrison | Rescued a captive Derelict 3893 | -8/Garrison | Garrison Relay disabled 3951 | -8/Garrison | Expanded RIF knowledge: Hotswap 4073 | -8/Garrison | Entered Factory 4073 | -7/Factory | Accompanied by 12 allies 4073 | -7/Factory | Evolved 2 slots: Propulsion x1, Utility x1 4074 | -7/Factory | Identified exit to Storage 4075 | -7/Factory | Identified exit to Factory 4103 | -7/Factory | Lost 3 allies 4378 | -7/Factory | Lost 3 allies 4517 | -7/Factory | Repaired Enh. Autogun? 4541 | -7/Factory | Lost 5 allies 4607 | -7/Factory | Repaired Enh. Autogun 4794 | -7/Factory | Repaired Imp. Flight Unit 5169 | -7/Factory | Watched by a mysterious "MATRIX" hacker 5187 | -7/Factory | Fabricated Surge Thruster (x2) 5268 | -7/Factory | Repaired Imp. Cesium-ion Thruster 5273 | -7/Factory | First assault squad dispatched 5355 | -7/Factory | Repaired Enh. Autogun 5427 | -7/Factory | Manually triggered Chute Trap 5427 | -7/Factory | Sucked down chute 5427 | -7/Factory | Entered Waste 5433 | -7/Waste | Spotted C-40 Crusher 5434 | -7/Waste | Spotted C-40 Crusher 5437 | -7/Waste | Spotted C-40 Crusher 5441 | -7/Waste | Spotted C-40 Crusher 5442 | -7/Waste | Discovered new exit (range 12) 5453 | -7/Waste | Spotted C-40 Crusher 5457 | -7/Waste | Warlord forces began an assault 5483 | -7/Waste | Allies destroyed C-40 Crusher 5489 | -7/Waste | Allies destroyed C-40 Crusher 5491 | -7/Waste | Allies destroyed C-40 Crusher 5500 | -7/Waste | Allies destroyed C-40 Crusher 5504 | -7/Waste | Spotted C-40 Crusher 5530 | -7/Waste | Lost 4 allies 5571 | -7/Waste | Build established: Hacker-Sprinter 5582 | -7/Waste | Entered Factory 5582 | -7/Factory | Accompanied by 15 allies 5672 | -7/Factory | Identified exit to Garrison 5683 | -7/Factory | Entered Garrison 5714 | -7/Garrison | Garrison Relay disabled 5813 | -7/Garrison | Discovered new exit (range 10) 5856 | -7/Garrison | Garrison Relay disabled 5867 | -7/Garrison | Triggered checkpoint 5954 | -7/Garrison | Discovered new exit (range 15) 5965 | -7/Garrison | Triggered checkpoint 5966 | -7/Garrison | Expanded RIF knowledge: Patrol Navigation 5974 | -7/Garrison | Garrison Relay disabled 5999 | -7/Garrison | Triggered checkpoint 6011 | -7/Garrison | Triggered checkpoint 6017 | -7/Garrison | Triggered checkpoint 6045 | -7/Garrison | Triggered checkpoint 6048 | -7/Garrison | Found embedded Infiltrators 6057 | -7/Garrison | Triggered checkpoint 6075 | -7/Garrison | Lost 3 allies 6087 | -7/Garrison | Triggered checkpoint 6087 | -7/Garrison | Garrison Relay disabled 6159 | -7/Garrison | Discovered new exit (range 34) 6159 | -7/Garrison | Discovered new exit (range 34) 6159 | -7/Garrison | Discovered new exit (range 72) 6159 | -7/Garrison | Discovered new exit (range 47) 6172 | -7/Garrison | Entered Factory 6350 | -7/Factory | Central database locked down 6408 | -7/Factory | Repaired Enh. Autogun 6451 | -7/Factory | Discovered exit to Storage (range 7) 6477 | -7/Factory | Entered Storage 6477 | -7/Storage | Accompanied by 1 ally 6478 | -7/Storage | Identified exit to Recycling 6524 | -7/Storage | Core integrity fell below 50% 6570 | -7/Storage | Lost 3 parts (1n2w) 6573 | -7/Storage | Destroyed 7 combat bots 6683 | -7/Storage | Repaired Imp. VTOL Module 6754 | -7/Storage | Repaired Imp. Cesium-ion Thruster 6813 | -7/Storage | Discovered exit to Factory (range 6) 6827 | -7/Storage | Met 01-MTF 6877 | -7/Storage | Search patrols dispatched 6901 | -7/Storage | Identified exit to Garrison 6901 | -7/Storage | Entered Garrison 6931 | -7/Garrison | Triggered checkpoint 6964 | -7/Garrison | Garrison Relay disabled 7017 | -7/Garrison | Lost 3 parts (1p2w) 7109 | -7/Garrison | Expanded RIF knowledge: Alert ID Control 7118 | -7/Garrison | Discovered exit to Recycling (range 10) 7123 | -7/Garrison | Triggered checkpoint 7137 | -7/Garrison | Core integrity fell below 20% 7161 | -7/Garrison | Discovered exit to Recycling (range 10) 7163 | -7/Garrison | Entered Recycling 7164 | -7/Recycling | Identified exit to Scraptown 7164 | -7/Recycling | Identified exit to Factory 7208 | -7/Recycling | Scanned before Scraplab entrance 7211 | -7/Recycling | Entered Scraplab 7213 | -7/Recycling | Entered Scraptown 7213 | -7/Scraptown | System corruption cleaned by C-Scrubber 7250 | -7/Scraptown | Visited Cave Peace 7252 | -7/Scraptown | Visited Spacefarers 7255 | -7/Scraptown | Visited Cyclists 7260 | -7/Scraptown | Visited Fellowship of the Rings 7265 | -7/Scraptown | Visited TADAMA 7268 | -7/Scraptown | Turned away by UFD registrar 7278 | -7/Scraptown | Discovered exit to Factory (range 11) 7310 | -7/Scraptown | Entered Factory 7310 | -5/Factory | Evolved 4 slots: Power x1, Propulsion x1, Utility x2 7311 | -5/Factory | Identified exit to Extension 7355 | -5/Factory | Build established: Bothacker-Sprinter 7445 | -5/Factory | Discovered new exit (range 13) 7587 | -5/Factory | Entered Extension 7594 | -5/Extension | Rescued A7 7678 | -5/Extension | Attached CPS modules to A7 7697 | -5/Extension | Rescued a captive Derelict 7697 | -5/Extension | Rescued a captive Derelict 7767 | -5/Extension | Rescued a captive Derelict 7786 | -5/Extension | Spotted B-75 Beast 7816 | -5/Extension | Spotted B-75 Beast 7823 | -5/Extension | Allies destroyed B-75 Beast 7832 | -5/Extension | Destroyed B-75 Beast 7858 | -5/Extension | Extracted ID and sensor layout for unrecognized location from A7's data core 7859 | -5/Extension | Found Prototype Protection 7859 | -5/Extension | Identified Med. Regenerative Plating 7893 | -5/Extension | Lost 5 allies 7893 | -5/Extension | Rescued a captive Derelict 7894 | -5/Extension | Rescued a captive Derelict 7972 | -5/Extension | Rescued a captive Derelict 8150 | -5/Extension | Discovered new exit (range 16) 8150 | -5/Extension | Discovered new exit (range 15) 8214 | -5/Extension | Rescued a captive Derelict 8226 | -5/Extension | Rescued a captive Derelict 8227 | -5/Extension | Rescued a captive Derelict 8279 | -5/Extension | Lost 3 allies 8283 | -5/Extension | Build established: Scavenger-Sprinter 8320 | -5/Extension | Entered Cetus 8320 | -5/Cetus | Accompanied by 10 allies 8329 | -5/Cetus | Spotted Cetus Guard 8329 | -5/Cetus | Spotted Cetus Guard 8330 | -5/Cetus | Spotted Cetus Guard 8330 | -5/Cetus | Spotted Cetus Guard 8331 | -5/Cetus | Attached CPS modules to Cetus Guard 8362 | -5/Cetus | Destroyed Cetus Guard 8365 | -5/Cetus | Allies destroyed Cetus Guard 8367 | -5/Cetus | Allies destroyed Cetus Guard 8374 | -5/Cetus | Allies destroyed Cetus Guard 8398 | -5/Cetus | Lost 7 allies 8406 | -5/Cetus | Discovered new exit (range 16) 8470 | -5/Cetus | Entered Archives 8470 | -5/Archives | Accompanied by 3 allies 8527 | -5/Archives | Lost 3 allies 8565 | -5/Archives | Discovered new exit (range 16) 8581 | -5/Archives | Discovered new exit (range 16) 8592 | -5/Archives | Discovered new exit (range 15) 8728 | -5/Archives | Entered Hub_04(d) 8728 | -5/Hub_04(d) | Accompanied by 6 allies 8733 | -5/Hub_04(d) | Discovered new exit (range 12) 8750 | -5/Hub_04(d) | Targeted by mysterious "MATRIX" hacker 8782 | -5/Hub_04(d) | Discovered new exit (range 12) 8794 | -5/Hub_04(d) | Spotted B-75 Beast 8796 | -5/Hub_04(d) | Network Hub disabled 8804 | -5/Hub_04(d) | Spotted Lightning 8813 | -5/Hub_04(d) | Spotted Lightning 8813 | -5/Hub_04(d) | Spotted Lightning 8816 | -5/Hub_04(d) | Identified exit to Garrison 8817 | -5/Hub_04(d) | Spotted Lightning 8817 | -5/Hub_04(d) | Entered Garrison 8828 | -5/Garrison | Lost 3 parts (1p1n1w) 8865 | -5/Garrison | Found embedded Infiltrators 8875 | -5/Garrison | Garrison Relay disabled 8893 | -5/Garrison | Spotted B-75 Beast 8934 | -5/Garrison | Destroyed B-75 Beast 8985 | -5/Garrison | Expanded RIF knowledge: Threat Obfuscation 9006 | -5/Garrison | Discovered new exit (range 10) 9025 | -5/Garrison | Triggered checkpoint 9045 | -5/Garrison | Triggered checkpoint 9053 | -5/Garrison | Triggered checkpoint 9063 | -5/Garrison | Triggered checkpoint 9078 | -5/Garrison | Discovered new exit (range 10) 9080 | -5/Garrison | Entered Factory 9080 | -4/Factory | Evolved 2 slots: Utility x2 9108 | -4/Factory | Spotted B-86 Titan 9109 | -4/Factory | Lost 5 parts (1p1n1u2w) 9374 | -4/Factory | Discovered new exit (range 8) 9463 | -4/Factory | Repaired Cld. VTOL Module? 9475 | -4/Factory | Manually triggered Chute Trap 9475 | -4/Factory | Sucked down chute 9475 | -4/Factory | Entered Waste 9478 | -4/Waste | Spotted C-40 Crusher 9478 | -4/Waste | Spotted C-40 Crusher 9484 | -4/Waste | Spotted C-40 Crusher 9484 | -4/Waste | Spotted C-40 Crusher 9485 | -4/Waste | Spotted C-40 Crusher 9486 | -4/Waste | Spotted C-40 Crusher 9489 | -4/Waste | Discovered new exit (range 15) 9490 | -4/Waste | EMP discharged 9493 | -4/Waste | Entered Factory 9666 | -4/Factory | Identified exit to Garrison 9666 | -4/Factory | Entered Garrison 9692 | -4/Garrison | Triggered checkpoint 9709 | -4/Garrison | Lost 10 parts (1p3n3u3w) 9749 | -4/Garrison | Garrison Relay disabled 9830 | -4/Garrison | Spotted B-86 Titan 9929 | -4/Garrison | Discovered new exit (range 10) 9931 | -4/Garrison | Entered Factory 9948 | -4/Factory | Identified exit to Upper Caves 9948 | -4/Factory | Identified exit to Armory 9955 | -4/Factory | Central database locked down 10176 | -4/Factory | Spotted B-86 Titan 10275 | -4/Factory | Fabricated Imp. Surge Thruster? 10305 | -4/Factory | Discovered new exit (range 14) 10360 | -4/Factory | Spotted B-86 Titan 10454 | -4/Factory | Allied Derelicts emerged from ambush trap array 10521 | -4/Factory | Learned location of 1 exit from Testing 10567 | -4/Factory | Build established: Hacker-Sprinter 10580 | -4/Factory | Fabricated Imp. Surge Thruster (x2) 10581 | -4/Factory | Fabricated Imp. Surge Thruster (x2) 10583 | -4/Factory | Loaded intel: 6 repair station locations 10597 | -4/Factory | Learned 4 Upper Caves zone layouts 10622 | -4/Factory | Identified exit to Research 10627 | -4/Factory | Lost 4 parts (2n1u1w) 10656 | -4/Factory | Loaded intel: 8 recycling unit locations 10785 | -4/Factory | Entered Armory 10852 | -4/Armory | Fabricated Cld. VTOL Module (x1) 10876 | -4/Armory | Assisted by bots powering up and referring to "LRC-V3" 11064 | -4/Armory | Fabricated Cld. VTOL Module? 11068 | -4/Armory | Lost 10 allies 11095 | -4/Armory | Spotted B-86 Titan 11135 | -4/Armory | Discovered new exit (range 3) 11135 | -4/Armory | Identified exit to Lab 11136 | -4/Armory | Entered Lab 11136 | -4/Lab | Discovered exit to Research (range 9) 11139 | -4/Lab | Hidden lab's door opened automatically 11139 | -4/Lab | Sensor layout match revealed 11140 | -4/Lab | Gained access to the hidden lab's interior 11209 | -4/Lab | Found Alien Artifact 11209 | -4/Lab | Identified Integrated Reactor 11209 | -4/Lab | Installed Integrated Reactor, increased core energy generation (+10) 11219 | -4/Lab | Found Alien Artifact 11219 | -4/Lab | Identified Core Regenerator 11219 | -4/Lab | Used Core Regenerator, restored core integrity (+287) 11229 | -4/Lab | Found Prototype Hackware 11229 | -4/Lab | Identified Quantum Router 11245 | -4/Lab | Found Alien Artifact 11253 | -4/Lab | Unable to decrypt terminal 11282 | -4/Lab | Found Prototype Special Weapon 11282 | -4/Lab | Identified Gui. Remote Datajack 11303 | -4/Lab | Build established: Hacker-Ninja 11327 | -4/Lab | Entered Research 11327 | -3/Research | Evolved 2 slots: Utility x2 11403 | -3/Research | Spotted B-86 Titan 11500 | -3/Research | Discovered new exit (range 5) 11501 | -3/Research | Identified exit to Research 11681 | -3/Research | Identified exit to Quarantine 11692 | -3/Research | Lost 3 parts (1p1n1u) 11705 | -3/Research | Found Prototype Device 11705 | -3/Research | Identified Exp. Shield Generator 11709 | -3/Research | Found Prototype Processor 11709 | -3/Research | Identified Exp. Melee Analysis Suite 11782 | -3/Research | Learned location of 1 exit from Research 11784 | -3/Research | Found Prototype Device 11784 | -3/Research | Identified Exp. EM Disruption Field 11812 | -3/Research | Learned location of 1 exit from Armory 11834 | -3/Research | Learned Testing security intel 11847 | -3/Research | Learned Access repair station intel 11873 | -3/Research | Learned 12 Research zone layouts 11905 | -3/Research | Entered Quarantine 11928 | -3/Quarantine | Found Alien Reactor 11972 | -3/Quarantine | Build established: Hacker-Sprinter 11988 | -3/Quarantine | Found Alien Artifact 12013 | -3/Quarantine | Identified Subatomic Replicator 12013 | -3/Quarantine | Identified Transdimensional Reconstructor 12013 | -3/Quarantine | Identified Matter Drive 12026 | -3/Quarantine | Found Prototype Device 12026 | -3/Quarantine | Identified Exp. Thermal Shield 12037 | -3/Quarantine | Found Alien Artifact 12123 | -3/Quarantine | Identified Core Reset Matrix 12157 | -3/Quarantine | Learned Research trap positions 12176 | -3/Quarantine | Entered Research 12176 | -2/Research | Evolved 2 slots: Propulsion x1, Utility x1 12177 | -2/Research | Identified exit to Access 12179 | -2/Research | Loaded intel: 96 trap records 12321 | -2/Research | Found Prototype Processor 12321 | -2/Research | Identified Exp. Core Analyzer 12506 | -2/Research | Found Prototype Hackware 12506 | -2/Research | Identified Exp. System Shield 12607 | -2/Research | Discovered exit to Access (range 5) 12668 | -2/Research | Lost 3 parts (1p1n1w) 12752 | -2/Research | Discovered new exit (range 13) 12755 | -2/Research | Identified exit to Testing 12779 | -2/Research | Entered Testing 12780 | -2/Testing | Identified exit to Protoforge 12847 | -2/Testing | Found Prototype Device 12847 | -2/Testing | Identified Adv. Kinecellerator 12867 | -2/Testing | Found Prototype Device 12867 | -2/Testing | Identified Exp. Hardlight Generator 12885 | -2/Testing | Spotted Striker 12889 | -2/Testing | Spotted Striker 12899 | -2/Testing | Discovered exit to Access (range 12) 12919 | -2/Testing | Found Prototype Hackware 12919 | -2/Testing | Identified System Mapper 12930 | -2/Testing | Spotted Superbehemoth 13017 | -2/Testing | Spotted Fortress 13032 | -2/Testing | Discovered new exit (range 6) 13033 | -2/Testing | Identified exit to Section 7 13065 | -2/Testing | Entered Section 7 13071 | -2/Section 7 | Used Core Reset Matrix 13075 | -2/Section 7 | Detected hypermatrix surge 13075 | -2/Section 7 | Sensed 24 artifacts in vicinity 13131 | -2/Section 7 | Found Integrity Redistributor 13131 | -2/Section 7 | Used Integrity Redistributor, redistributed integrity from core (-48) 13195 | -2/Section 7 | Identified exit to Garrison 13293 | -2/Section 7 | Lost 5 parts (2p1n2u) 13350 | -2/Section 7 | Spotted Executioner 13359 | -2/Section 7 | Integrated with Sigix Exoskeleton 13380 | -2/Section 7 | Spotted Striker 13380 | -2/Section 7 | Spotted Striker 13406 | -2/Section 7 | Spotted Striker 13406 | -2/Section 7 | Spotted Striker 13420 | -2/Section 7 | Destroyed Striker 13446 | -2/Section 7 | Found Sigix Shearcannon 13454 | -2/Section 7 | Destroyed Striker 13458 | -2/Section 7 | Destroyed Striker 13460 | -2/Section 7 | Destroyed Striker 13519 | -2/Section 7 | Core integrity fell below 50% 13539 | -2/Section 7 | Spotted B-99 Colossus 13550 | -2/Section 7 | Found Integrated Dissipator 13550 | -2/Section 7 | Installed Integrated Dissipator, increased core heat dissipation (+20) 13551 | -2/Section 7 | Found Integrated Dissipator 13551 | -2/Section 7 | Installed Integrated Dissipator, increased core heat dissipation (+20) 13553 | -2/Section 7 | Found Integrated Dissipator 13553 | -2/Section 7 | Installed Integrated Dissipator, increased core heat dissipation (+20) 13583 | -2/Section 7 | Found Integrated Reactor 13583 | -2/Section 7 | Installed Integrated Reactor, increased core energy generation (+10) 13622 | -2/Section 7 | Sigix Exoskeleton integrity reduced to 80% 13643 | -2/Section 7 | Spotted S7 Guard 13646 | -2/Section 7 | Destroyed S7 Guard 13647 | -2/Section 7 | Build established: Alien-Sigix 13663 | -2/Section 7 | Used Subatomic Replicator to replicate Navigation Efficiency Matrix 13664 | -2/Section 7 | Found Navigation Efficiency Matrix 13664 | -2/Section 7 | Installed Navigation Efficiency Matrix, process failed with unexpected side effects 13666 | -2/Section 7 | Installed Navigation Efficiency Matrix, process failed with unexpected side effects 13677 | -2/Section 7 | Spotted Executioner 13682 | -2/Section 7 | Scanned by Researcher 13683 | -2/Section 7 | Intercept squad dispatched 13688 | -2/Section 7 | Warped through subspace 13741 | -2/Section 7 | Crushed by falling debris 13872 | -2/Section 7 | Core integrity fell below 20% 13910 | -2/Section 7 | Sigix Exoskeleton integrity reduced to 60% 13911 | -2/Section 7 | Spotted Alpha 7 13911 | -2/Section 7 | Spotted Executioner 13912 | -2/Section 7 | Spotted Alpha 7 13916 | -2/Section 7 | Spotted Executioner 13927 | -2/Section 7 | Found Integrity Redistributor 13927 | -2/Section 7 | Spotted Executioner 13927 | -2/Section 7 | Spotted Executioner 13928 | -2/Section 7 | Destroyed 25 combat bots 13932 | -2/Section 7 | Spotted Executioner 13933 | -2/Section 7 | Spotted Executioner 13933 | -2/Section 7 | Spotted Striker 13933 | -2/Section 7 | Spotted Striker 13933 | -2/Section 7 | Spotted Executioner 13933 | -2/Section 7 | Spotted Investigator 13935 | -2/Section 7 | Destroyed Investigator 13941 | -2/Section 7 | Destroyed Executioner 13943 | -2/Section 7 | Used Integrity Redistributor, redistributed integrity to core (+246) 13944 | -2/Section 7 | Sigix Exoskeleton integrity reduced to 40% 13945 | -2/Section 7 | Destroyed Executioner 13949 | -2/Section 7 | Sigix Exoskeleton integrity reduced to 20% 13953 | -2/Section 7 | Destroyed Executioner 13957 | -2/Section 7 | Spotted Executioner 13974 | -2/Section 7 | Destroyed 10 combat bots 13975 | -2/Section 7 | Found Integrity Redistributor 13996 | -2/Section 7 | Spotted Tracker 13999 | -2/Section 7 | Entered Access 13999 | -1/Access | Evolved 2 slots: Utility x2 14004 | -1/Access | Emitted hypermatrix ping 14009 | -1/Access | Assembled emerged from beneath the floor 14039 | -1/Access | Assembled emerged from beneath the floor 14127 | -1/Access | Spotted B-99 Colossus 14140 | -1/Access | Assembled emerged from beneath the floor 14176 | -1/Access | Spotted Striker 14176 | -1/Access | Spotted Striker 14177 | -1/Access | Assembled emerged from beneath the floor 14177 | -1/Access | Spotted Executioner 14183 | -1/Access | Assembled emerged from beneath the floor 14217 | -1/Access | Assembled emerged from beneath the floor 14278 | -1/Access | Assembled emerged from beneath the floor 14278 | -1/Access | Intercept squad dispatched 14282 | -1/Access | Spotted Investigator 14284 | -1/Access | Destroyed Investigator 14290 | -1/Access | Assembled emerged from beneath the floor 14304 | -1/Access | Crushed by falling debris 14306 | -1/Access | Used Integrity Redistributor, redistributed integrity from core (-538) 14319 | -1/Access | Discovered new exit (range 14) 14342 | -1/Access | Spotted Striker 14349 | -1/Access | Energy Cycler disabled 14355 | -1/Access | Discovered new exit (range 16) 14389 | *** | Heading to fleet! Last Messages --------------- 14352_ K-01 Serf collects debris. 14354_ R-10 Processor suffers critical hit (Blast). 14354_ R-10 Processor destroyed. 14354_ Navigation matrix triggers involuntary quantum shift. 14355_ EXIT=FOUND 14355_ O-32 Director: "IFF HANDSHAKE FAILED. SECURING TERMINAL." 14357_ Adv. System Restoration Module purges 1% system corruption (1%). 14358_ The Access Shell folds into the floor. 14370_ Quantum Shear penetrates Sealed Heavy Doors. 14380_ Navigation matrix triggers involuntary quantum shift. 14383_ Acquired 15 matter. 14389_ Adv. System Restoration Module purges 1% system corruption (0%). [Achievement: On My Own Terms] Map ----- +----------------------------------------------------+ | ?????????????????????????????????????????????????? | | ?????????????????????????????????????????????????? | | ?????????????????????????????????????????????????? | | ?????????????????????????????????????????????????? | | ?????????????????????????????????????????????????? | | ?????????????????????????????????????????????????? | | ??????????????#??#??#???#????????????????????????? | | ?????????## #################???????????????????? | | ??????!!! # ####################????????????????? | | ??? !!! # #####################???????????????? | | ?? !! # #######################?????????????? | | ## # ########################????????????? | | ## ! ]# #########################???????????? | | ## = # ##########################??????????? | | ## + ############################????????? | | # # #############################???????? | | ## #w ##############################??????? | | ###########k ###############################?????? | | ########### ###############################?????? | | ########### ####### ########################????? | | ########### """T""" """" #####???? | | ########### """ """ """" BB #####???? | | ########### """" BB #####???? | | ########### """" ??? | | ###########R "" """" ??? | | ########### X" """" ??? | | ########### o """" ??? | | ########### """" BB ### ??? | | ########### """" BB ### ?? | | ########### """" ### ??? | | ########### ####### ####################### ??? | | ########### ############################### ??? | | ########### ############################### ??? | | ########### # """T""" ######### # ??? | | ########### # """ """ ######### ! # ???? | | ########### + ######### # ???? | | ####### # ! ######### " # ???? | | "" # #########] """ + ????? | | T" # ######### """ #?????? | | ###### ### ######### " #?????? | | ########## ### ######### ??????? | | #### ### " ######### = ???????? | | #### ### """ ###############????????? | | + ### """ #############??????????? | | #### ### " ############???????????? | | #### ########################??????????????? | | ## ! ############???##???????????????????? | | ######## ?????????????????????????? | | ???????????????????????????? | | ### ????????????????????????????? | +----------------------------------------------------+ Best States ------------- Heat Dissipation 217 Coolant Potential 65 Energy Generation 87 Energy Capacity 440 Matter Stores 300 Matter Capacity 300 Sight Range 16 Robot Scan Range 18 Terrain Scan Density 10 ECM Strength 1 Jamming Range 16 Cloak Strength 4 Additional Mass Support 16 Corruption Block 20 Armor Coverage 225 Resistance: KI 50 Resistance: TH 50 Resistance: EX 50 Resistance: EM 50 Resistance: I 50 Resistance: S 50 Resistance: P 50 Propulsion Shielding 66 Utility Shielding 66 Point Defense Rating 80 Evasion (%) 83 Targeting Accuracy 8 Melee Accuracy 12 Recoil Reduction 2 Salvage Targeting 1 Offensive Hacking 36 Defensive Hacking 25 Relay Coupler Types 3 Relay Coupler Value 82 Authchip Count 1 Item Schematics ----------------- None Robot Schematics ------------------ None Fabricated ------------ Surge Thruster | x2 | -7/Factory Imp. Surge Thruster | x2 | -4/Factory Imp. Surge Thruster | x2 | -4/Factory Imp. Surge Thruster | x2 | -4/Factory Cld. VTOL Module | x1 | -4/Armory Cld. VTOL Module | x1 | -4/Armory | Authchip Repaired ---------- Flight Unit | 5% | -10/Materials Flight Unit | 45% | -10/Materials Imp. Assault Rifle | 7% | -8/Materials Lgt. Nuclear Core | 12% | -8/Materials Imp. Flight Unit | 27% | -8/Materials Imp. Cesium-ion Thruster | 71% | -8/Materials Enh. Autogun | 30% | -7/Factory Enh. Autogun | 39% | -7/Factory Imp. Flight Unit | 10% | -7/Factory Imp. Cesium-ion Thruster | 1% | -7/Factory Enh. Autogun | 15% | -7/Factory Enh. Autogun | 3% | -7/Factory Imp. VTOL Module | 20% | -7/Storage Imp. Cesium-ion Thruster | 33% | -7/Storage Cld. VTOL Module | 18% | -4/Factory Studied --------- None Alien Tech Used ----------------- Integrated Reactor Core Regenerator Core Reset Matrix Integrity Redistributor Matter Drive Sigix Exoskeleton Sigix Sheargun Sigix Shearcannon Integrated Dissipator Subatomic Replicator Navigation Efficiency Matrix Transdimensional Reconstructor Achievements -------------- On My Own Terms Challenges ------------ None Game ------ Seed TransportAntisysArchive Manual? 0 Play Time 05:29:45 Cumulative 377.0 hours Start 2026.08.21 @ 16:29:54 End 2026.08.22 @ 18:37:25 Sessions 5 Manual Loads 0 Difficulty Rogue Special Mode None Game No. 177 Rogue 177 Adventurer 0 Explorer 0 Win Type 2 Total 31 Types 13/1/8/1/5/1/0/0/0/2 Lore% 90 Gallery% 80 Achievement% 88 Wizard Run 0 Options --------- Layout 1 ASCII 0 Keyboard 0 Movement Numpad Keybinds 0 Fullscreen 1 Font 24/Smallcaps Map View 50x35 Zoom Use 0% Tactical HUD 1 Map Filters NONE Filters NONE Steam 1 RUN: 94430ed8-f6e4-44df-9981-da1540185629